Workbook

Sheet FORS
A4: STATISTIKK
A7: FOR
A10: MÅLEVIRKSOMHETEN
A14: 2016
A15: NB: Alle timefortjenester er før eventuelt trekk av målegebyr | I15: Passord dokumentbeskyttelse:<Retur>

Sheet ÅRSTOT
A2: ="MÅLESTATISTIKK ALLE BYGGFAG - 1. HALVÅR "&FORS!$A$14 -> MÅLESTATISTIKK ALLE BYGGFAG - 1. HALVÅR 2016
B4: Målesum i kroner | D4: Timer | F4: ="Fortjeneste 1. halvår "&FORS!$A$14-0 -> Fortjeneste 1. halvår 2016 | I4: =" 1. halvår "&FORS!$A$14-1 -> 1. halvår 2015 | L4: Endringer i %
B5: Innmålt m/ | C5: Innmålt m/ | D5: Innmålt m/ | E5: Innmålt m/ | F5: Innmålt m/ | G5: Innmålt m/ | H5: Gjennom- | I5: Innmålt m/ | J5: Innmålt m/ | K5: Gjen.snitt | L5: Innmålt m/ | M5: Gjen.snitt
B6: overskudd | C6: underskudd | D6: overskudd | E6: underskudd | F6: overskudd | G6: underskudd | H6: snitt | I6: overskudd | J6: underskudd | K6: fortjeneste | L6: overskudd | M6: fortjeneste
A7: Agder | B7: =BETONG!B7+TØMRERE!B7+MALERE!B7+TAKTEKKERE!B7+MURERE!B7 -> 5824270 | C7: =BETONG!C7+TØMRERE!C7+MALERE!C7+TAKTEKKERE!C7+MURERE!C7 -> 288719 | D7: =BETONG!D7+TØMRERE!D7+MALERE!D7+TAKTEKKERE!D7+MURERE!D7 -> 21538.5 | E7: =BETONG!E7+TØMRERE!E7+MALERE!E7+TAKTEKKERE!E7+MURERE!E7 -> 1459 | F7: =IF(D7=0,0,B7/D7) -> 270.4120528 | G7: 197.8882796 | H7: =IF(D7+E7=0,0,(B7+C7)/(D7+E7)) -> 265.8110229 | I7: 10755402 | J7: 0 | K7: 265.54 | L7: =IF(I7=0,0,(B7-I7)/I7) -> -0.4584795622 | M7: =(H7-K7)/K7 -> 0.001020648254
A8: Bergen | B8: =BETONG!B8+TØMRERE!B8+MALERE!B8+RØRLEGGERE!B7+MURERE!B8+TAKTEKKERE!B11 -> 30426194.63 | C8: =BETONG!C8+TØMRERE!C8+MALERE!C8+RØRLEGGERE!C7+MURERE!C8+TAKTEKKERE!C11 -> 0 | D8: =BETONG!D8+TØMRERE!D8+MALERE!D8+RØRLEGGERE!D7+MURERE!D8+TAKTEKKERE!D11 -> 112216.44 | E8: =BETONG!E8+TØMRERE!E8+MALERE!E8+RØRLEGGERE!E7+MURERE!E8+TAKTEKKERE!E11 -> 0 | F8: =IF(D8=0,0,B8/D8) -> 271.1384769 | G8: =IF(E8=0,0,C8/E8) -> 0 | H8: =IF(D8+E8=0,0,(B8+C8)/(D8+E8)) -> 271.1384769 | I8: 49166471 | J8: =C8 -> 0 | K8: 273.08 | L8: =IF(I8=0,0,(B8-I8)/I8) -> -0.3811596803 | M8: =(H8-K8)/K8 -> -0.00710972262
A9: Drammen - Bærum | B9: =BETONG!B9+TØMRERE!B9 -> 0 | C9: =BETONG!C9+TØMRERE!C9 -> 0 | D9: =BETONG!D9+TØMRERE!D9 -> 0 | E9: =BETONG!E9+TØMRERE!E9 -> 0 | F9: 0 | G9: 0 | H9: 0 | J9: 0 | L9: =IF(I32=0,0,(B9-I32)/I32) -> -1 | M9: =(H9-K32)/K32 -> -1
B10: =BETONG!B10+TØMRERE!B10+TAKTEKKERE!B9+MURERE!B9+MALERE!B9 -> 0 | C10: =BETONG!C10+TØMRERE!C10+TAKTEKKERE!C9+MURERE!C9+MALERE!C9 -> 0 | D10: =BETONG!D10+TØMRERE!D10+TAKTEKKERE!D9+MURERE!D9+MALERE!D9 -> 0 | E10: =BETONG!E10+TØMRERE!E10+TAKTEKKERE!E9+MURERE!E9+MALERE!E9 -> 0 | F10: 0 | G10: 0 | H10: 0 | I10: 1966967 | J10: 0 | K10: 291.58
A11: Haugesund | B11: =BETONG!B11+'BLIKK OG VENTILASJON'!B7+TAKTEKKERE!B8 -> 7182045 | C11: =BETONG!C11++'BLIKK OG VENTILASJON'!C7+TAKTEKKERE!C8 -> 0 | D11: =BETONG!D11++'BLIKK OG VENTILASJON'!D7+TAKTEKKERE!D8 -> 27760.92 | E11: =BETONG!E11++'BLIKK OG VENTILASJON'!E7+TAKTEKKERE!E8 -> 0 | F11: 258.7106263 | G11: 0 | H11: 258.7106263 | I11: 6789716 | J11: 0 | K11: 254.51 | L11: 0.05778282921 | M11: 0.01650475936
A12: Hamar og Omegn | B12: =BETONG!B12+TØMRERE!B11+MALERE!B10+TAKTEKKERE!B10+MURERE!B10 -> 14511537.71 | C12: =BETONG!C12+TØMRERE!C11+MALERE!C10+TAKTEKKERE!C10+MURERE!C10 -> 627149.59 | D12: =BETONG!D12+TØMRERE!D11+MALERE!D10+TAKTEKKERE!D10+MURERE!D10 -> 48975.33 | E12: =BETONG!E12+TØMRERE!E11+MALERE!E10+TAKTEKKERE!E10+MURERE!E10 -> 3481.5 | F12: 296.3030103 | G12: 180.1377538 | H12: 288.5932547 | I12: 9555534 | J12: 823660 | K12: 263.98 | L12: 0.518652721 | M12: 0.09323908888
A13: Nordland | B13: =BETONG!B13+TØMRERE!B12+MALERE!B11+RØRLEGGERE!B8+MURERE!B11+TAKTEKKERE!B12 -> 2541354 | C13: =BETONG!C13+TØMRERE!C12+MALERE!C11+RØRLEGGERE!C8+MURERE!C11+TAKTEKKERE!C12 -> 1693791 | D13: =BETONG!D13+TØMRERE!D12+MALERE!D11+RØRLEGGERE!D8+MURERE!D11+TAKTEKKERE!D12 -> 10750 | E13: =BETONG!E13+TØMRERE!E12+MALERE!E11+RØRLEGGERE!E8+MURERE!E11+TAKTEKKERE!E12 -> 8251 | F13: 236.4050233 | G13: 205.2831172 | H13: 222.8906373 | I13: 7370371 | J13: 675503 | K13: 306.66 | L13: -0.6551932053 | M13: -0.2731669036
A14: Sandnes | B14: =BETONG!B14 -> 26362513.16 | C14: =BETONG!C14+MALERE!C12 -> 0 | D14: =BETONG!D14+MALERE!D12 -> 88921.19 | E14: =BETONG!E14+MALERE!E12 -> 0 | F14: 296.4705394 | G14: 0 | H14: 296.4705394 | I14: 40738774 | J14: 0 | K14: 321.21 | L14: -0.3528888925 | M14: -0.07701958419
A15: Stavanger | B15: =BETONG!B15+TØMRERE!B13+RØRLEGGERE!B9+'BLIKK OG VENTILASJON'!B8+TAKTEKKERE!B13+MURERE!B12 -> 4428838 | C15: =BETONG!C15+TØMRERE!C13+RØRLEGGERE!C9+'BLIKK OG VENTILASJON'!C8+TAKTEKKERE!C13+MURERE!C12 -> 95510 | D15: =BETONG!D15+TØMRERE!D13+RØRLEGGERE!D9+'BLIKK OG VENTILASJON'!D8+TAKTEKKERE!D13+MURERE!D12 -> 13864.5 | E15: =BETONG!E15+TØMRERE!E13+RØRLEGGERE!E9+'BLIKK OG VENTILASJON'!E8+TAKTEKKERE!E13+MURERE!E12 -> 559 | F15: 319.4372678 | G15: 170.8586762 | H15: 313.6789268 | I15: 7357788 | J15: 204969 | K15: 275.81 | L15: -0.3980748018 | M15: 0.137300775
A16: Telemark | B16: =BETONG!B16+TØMRERE!B14+MALERE!B13+TAKTEKKERE!B14+MURERE!B14 -> 15664087.53 | C16: =BETONG!C16+TØMRERE!C14+MALERE!C10+TAKTEKKERE!C14+MURERE!C14 -> 369108 | D16: =BETONG!D16+TØMRERE!D14+MALERE!D13+TAKTEKKERE!D14+MURERE!D14 -> 56053.93 | E16: =BETONG!E16+TØMRERE!E14+MALERE!E13+TAKTEKKERE!E14+MURERE!E14 -> 678 | F16: 279.4467316 | G16: 544.4070796 | H16: 282.6132573 | I16: 11658182 | J16: 424120 | K16: 263.49 | L16: 0.3436132263 | M16: 0.07257678582
A17: Tromsø | B17: =BETONG!B17+MALERE!B14+RØRLEGGERE!B10+TØMRERE!B16+MURERE!B13 -> 0 | C17: =BETONG!C17+MALERE!C14+RØRLEGGERE!C10+TØMRERE!C16+MURERE!C13 -> 0 | D17: =BETONG!D17+MALERE!D14+RØRLEGGERE!D10+TØMRERE!D16+MURERE!D13 -> 0 | E17: =BETONG!E17+MALERE!E14+RØRLEGGERE!E10+TØMRERE!E16+MURERE!E13 -> 0 | F17: 0 | G17: 0 | H17: 0 | I17: 1444903 | J17: 0 | K17: 248.55
A18: Trondheim | B18: =BETONG!B18+TØMRERE!B15+MALERE!B15+RØRLEGGERE!B11+TAKTEKKERE!B15+MURERE!B15 -> 136864761.5 | C18: =BETONG!C18+TØMRERE!C15+MALERE!C15+RØRLEGGERE!C11+TAKTEKKERE!C15+MURERE!C15 -> 11956559.82 | D18: =BETONG!D18+TØMRERE!D15+MALERE!D15+RØRLEGGERE!D11+TAKTEKKERE!D15+MURERE!D15 -> 474259.1263 | E18: =BETONG!E18+TØMRERE!E15+MALERE!E15+RØRLEGGERE!E11+TAKTEKKERE!E15+MURERE!E15 -> 63202.44425 | F18: 288.5864581 | G18: 189.1787566 | H18: 276.8966741 | I18: 128528279 | J18: 5172886 | K18: 275.43 | L18: 0.06486107629 | M18: 0.005325033829
A19: Vestfold | B19: =BETONG!B19+TØMRERE!B17+MALERE!B16+TAKTEKKERE!B16+MURERE!B16 -> 6838016 | D19: =BETONG!D19+TØMRERE!D17+MALERE!D16+TAKTEKKERE!D16+MURERE!D16 -> 22541 | E19: =BETONG!E19+TØMRERE!E17 -> 0 | F19: 303.3590346 | G19: 0 | H19: 303.3590346 | I19: 8514783 | J19: 435336 | K19: 241.53 | L19: -0.1969242199 | M19: 0.2559890475
A20: Østfold | B20: =BETONG!B20+TØMRERE!B18+MURERE!B18 -> 10086148 | C20: =BETONG!C20+TØMRERE!C59+MALERE!C17+RØRLEGGERE!C13+TAKTEKKERE!C17+MURERE!C17 -> 7338219.54 | D20: =BETONG!D20+TØMRERE!D18+MALERE!D17+TAKTEKKERE!D17+MURERE!D17 -> 87323 | E20: =BETONG!E20+TØMRERE!E18+MURERE!E18 -> 3455 | F20: 115.5039108 | G20: 2123.94198 | H20: 191.9448274 | I20: 16445913 | J20: 3802314 | K20: 263.66 | L20: -0.3867079316 | M20: -0.2719986825
A21: Oslo | B21: =BETONG!B21+TØMRERE!B19+MALERE!B17+RØRLEGGERE!B12+'BLIKK OG VENTILASJON'!B9+TAKTEKKERE!B17+MURERE!B17+ISOLATØR!B7 -> 90144330.09 | C21: =BETONG!C21+TØMRERE!C19+MALERE!C18+RØRLEGGERE!C14+TAKTEKKERE!C18+MURERE!C18 -> 2866618.22 | D21: =BETONG!D21+TØMRERE!D19+MALERE!D18+TAKTEKKERE!D18+MURERE!D18 -> 320104.84 | E21: =BETONG!E21+TØMRERE!E19+MALERE!E17+RØRLEGGERE!E12+'BLIKK OG VENTILASJON'!E9+TAKTEKKERE!E17+MURERE!E17+ISOLATØR!E7 -> 17662 | F21: 281.6087695 | G21: 162.3042815 | H21: 275.3702771 | I21: 70571022 | J21: 288977 | K21: 290.99 | L21: 0.277356166 | M21: -0.05367786847
A22: Landet i alt | B22: =SUM(B7:B21) -> 350874095.6 | C22: =SUM(C7:C21) -> 25235675.17 | D22: =SUM(D7:D21) -> 1284308.776 | E22: =SUM(E7:E21) -> 98747.94425 | F22: 273.2007303 | G22: 255.5564611 | H22: 271.9409589 | I22: =SUM(I7:I21) -> 370864105 | J22: =SUM(J7:J21) -> 11827765 | K22: 279.7 | L22: -0.05390117054 | M22: -0.02774058314
A25: ="MÅLESTATISTIKK FOR ALLE BYGGFAG - 2. HALVÅR "&FORS!$A$14 -> MÅLESTATISTIKK FOR ALLE BYGGFAG - 2. HALVÅR 2016
B27: Målesum i kroner | D27: Timer | F27: ="Fortjeneste 2. halvår "&FORS!$A$14-0 -> Fortjeneste 2. halvår 2016 | I27: =" 2. halvår "&FORS!$A$14-1 -> 2. halvår 2015 | L27: Endringer i %
B28: Innmålt m/ | C28: Innmålt m/ | D28: Innmålt m/ | E28: Innmålt m/ | F28: Innmålt m/ | G28: Innmålt m/ | H28: Gjennom- | I28: Innmålt m/ | J28: Innmålt m/ | K28: Gjen.snitt | L28: Innmålt m/ | M28: Gjen.snitt
B29: overskudd | C29: underskudd | D29: overskudd | E29: underskudd | F29: overskudd | G29: underskudd | H29: snitt | I29: overskudd | J29: underskudd | K29: fortjeneste | L29: overskudd | M29: fortjeneste
A30: Agder | B30: =BETONG!B30+TØMRERE!B28+TAKTEKKERE!B26 -> 5272896 | C30: =BETONG!C30+TØMRERE!C28+MALERE!C26+TAKTEKKERE!C26+MURERE!C27 -> 1075528 | D30: =BETONG!D30+TØMRERE!D28+MALERE!D26+TAKTEKKERE!D26+MURERE!D27 -> 18780 | E30: =BETONG!E30+TØMRERE!E28+MALERE!E26+TAKTEKKERE!E26+MURERE!E27 -> 5107 | F30: =IF(D30=0,0,B30/D30) -> 280.771885 | G30: 210.598786 | H30: =IF(D30+E30=0,0,(B30+C30)/(D30+E30)) -> 265.7689957 | I30: 10547945 | J30: 489063 | K30: 270.45 | L30: =IF(I30=0,0,(B30-I30)/I30) -> -0.5001020578 | M30: =(H30-K30)/K30 -> -0.017308206
A31: Bergen | B31: =BETONG!B31+TØMRERE!B29+MALERE!B27+RØRLEGGERE!B21+MURERE!B28+TAKTEKKERE!B30 -> 32001036.3 | C31: =BETONG!C31+TØMRERE!C29+MALERE!C27+RØRLEGGERE!C21+MURERE!C28+TAKTEKKERE!C30 -> 0 | D31: =BETONG!D31+TØMRERE!D29+MALERE!D27+RØRLEGGERE!D21+MURERE!D28+TAKTEKKERE!D30 -> 118365.49 | E31: =BETONG!E31+TØMRERE!E29+MALERE!E27+RØRLEGGERE!E21+MURERE!E28+TAKTEKKERE!E30 -> 0 | F31: 270.3578239 | G31: 0 | H31: 270.3578239 | I31: 26273018 | J31: 0 | K31: 268.28 | L31: =IF(I31=0,0,(B31-I31)/I31) -> 0.2180190452 | M31: =(H31-K31)/K31 -> 0.007744982441
A32: Drammen - Bærum | B32: =BETONG!B32+TØMRERE!B30 -> 0 | C32: =BETONG!C32+TØMRERE!C30 -> 0 | D32: =BETONG!D32+TØMRERE!D30 -> 0 | E32: =BETONG!E32+TØMRERE!E30 -> 0 | F32: 0 | G32: 0 | H32: 0 | I32: 4188998.73 | J32: 0 | K32: 360.74 | L32: =IF(I32=0,0,(B32-I32)/I32) -> -1 | M32: -1
B33: =BETONG!B33+TØMRERE!B31+TAKTEKKERE!B28+MURERE!B29+MALERE!B28 -> 0 | C33: =BETONG!C33+TØMRERE!C31+TAKTEKKERE!C28+MURERE!C29+MALERE!C28 -> 0 | D33: =BETONG!D33+TØMRERE!D31+TAKTEKKERE!D28+MURERE!D29+MALERE!D28 -> 0 | E33: =BETONG!E33+TØMRERE!E31+TAKTEKKERE!E28+MURERE!E29+MALERE!E28 -> 0 | F33: 0 | G33: 0 | H33: 0 | J33: 0 | L33: =IF(I33=0,0,(B33-I33)/I33) -> 0
A34: Haugesund | B34: =BETONG!B34+TAKTEKKERE!B27 -> 6280519 | C34: =BETONG!C34+TAKTEKKERE!C27 -> 0 | D34: =BETONG!D34+TAKTEKKERE!D27 -> 23786.47 | E34: =BETONG!E34+TAKTEKKERE!E27 -> 0 | F34: 264.0374549 | G34: 0 | H34: 264.0374549 | I34: 10138026 | J34: 0 | K34: 256.42 | L34: -0.3804988269 | M34: 0.02970694527
A35: Hamar og Omegn | B35: =BETONG!B35+TØMRERE!B32+MALERE!B29+TAKTEKKERE!B29+MURERE!B30 -> 7333330.17 | C35: =BETONG!C35+TØMRERE!C32+MALERE!C29+TAKTEKKERE!C29+MURERE!C30 -> 2353971.34 | D35: =BETONG!D35+TØMRERE!D32+MALERE!D29+TAKTEKKERE!D29+MURERE!D30 -> 26746.36 | E35: =BETONG!E35+TØMRERE!E32+MALERE!E29+TAKTEKKERE!E29+MURERE!E30 -> 15703.25 | F35: 274.180493 | G35: 149.9034493 | H35: 228.2070792 | I35: 14044133 | J35: 385742 | K35: 267.06 | L35: -0.4778367472 | M35: -0.1454838644
A36: Nordland | B36: =BETONG!B36+TØMRERE!B33+MALERE!B30+RØRLEGGERE!B22+MURERE!B31+TAKTEKKERE!B31+'BLIKK OG VENTILASJON'!B18 -> 845073 | C36: =BETONG!C36+TØMRERE!C33+MALERE!C30+RØRLEGGERE!C22+MURERE!C31+TAKTEKKERE!C31+'BLIKK OG VENTILASJON'!C18 -> 0 | D36: =BETONG!D36+TØMRERE!D33+MALERE!D30+RØRLEGGERE!D22+MURERE!D31+TAKTEKKERE!D31+'BLIKK OG VENTILASJON'!D18 -> 3016 | E36: =BETONG!E36+TØMRERE!E33+MALERE!E30+RØRLEGGERE!E22+MURERE!E31+TAKTEKKERE!E31+'BLIKK OG VENTILASJON'!E18 -> 0 | F36: 280.196618 | G36: 0 | H36: 280.196618 | I36: 485125 | J36: 0 | K36: 242.44 | L36: 0.7419695955 | M36: 0.1557359266
A37: Sandnes | B37: =BETONG!B37+MALERE!B31 -> 33046055.67 | C37: =BETONG!C37++MALERE!C31 -> 0 | D37: =BETONG!D37++MALERE!D31 -> 111644.78 | E37: =BETONG!E37++MALERE!E31 -> 0 | F37: 295.9928415 | G37: 0 | H37: 295.9928415 | I37: 33858607 | J37: 0 | K37: 315.36 | L37: -0.02399836857 | M37: -0.06141285676
A38: Stavanger | B38: =BETONG!B38+TØMRERE!B34+RØRLEGGERE!B23+'BLIKK OG VENTILASJON'!B19+TAKTEKKERE!B32+MURERE!B32 -> 3939581 | C38: =BETONG!C38+TØMRERE!C34+RØRLEGGERE!C23+'BLIKK OG VENTILASJON'!C19+TAKTEKKERE!C32+MURERE!C32 -> 130812 | D38: =BETONG!D38+TØMRERE!D34+RØRLEGGERE!D23+'BLIKK OG VENTILASJON'!D19+TAKTEKKERE!D32+MURERE!D32 -> 12664 | E38: =BETONG!E38+TØMRERE!E34+RØRLEGGERE!E23+'BLIKK OG VENTILASJON'!E19+TAKTEKKERE!E32+MURERE!E32 -> 677 | F38: 311.0850442 | G38: 193.2230428 | H38: 305.1040402 | I38: 5573604 | J38: 262724 | K38: 321.74 | L38: -0.2931717072 | M38: -0.05170622187
A39: Telemark | B39: =BETONG!B39+TØMRERE!B35+MALERE!B32+TAKTEKKERE!B33+MURERE!B34 -> 23983474.04 | C39: =BETONG!C39+TØMRERE!C35+MALERE!C32+TAKTEKKERE!C33+MURERE!C34 -> 179280 | D39: =BETONG!D39+TØMRERE!D35+MALERE!D32+TAKTEKKERE!D33+MURERE!D34 -> 80737.7 | E39: =BETONG!E39+TØMRERE!E35+MALERE!E32+TAKTEKKERE!E33+MURERE!E34 -> 878 | F39: 297.0542143 | G39: 204.191344 | H39: 296.0552203 | I39: 11346916 | K39: 248.52 | L39: 1.113655732 | M39: 0.1912732185
B40: =BETONG!B40+MALERE!B33+RØRLEGGERE!B24+TØMRERE!B37+MURERE!B33 -> 0 | C40: =BETONG!C40+MALERE!C33+RØRLEGGERE!C24+TØMRERE!C37+MURERE!C33 -> 0 | D40: =BETONG!D40+MALERE!D33+RØRLEGGERE!D24+TØMRERE!D37+MURERE!D33 -> 0 | E40: =BETONG!E40+MALERE!E33+RØRLEGGERE!E24+TØMRERE!E37+MURERE!E33 -> 0 | F40: 0 | G40: 0 | H40: 0 | J40: 0 | L40: 0
A41: Trondheim | B41: =BETONG!B41+TØMRERE!B36+MALERE!B34+RØRLEGGERE!B25+TAKTEKKERE!B34+MURERE!B35 -> 171118890.5 | C41: =BETONG!C41+TØMRERE!C36+MALERE!C34+RØRLEGGERE!C25+TAKTEKKERE!C34+MURERE!C35 -> 12366765.16 | D41: =BETONG!D41+TØMRERE!D36+MALERE!D34+RØRLEGGERE!D25+TAKTEKKERE!D34+MURERE!D35 -> 588911.74 | E41: =BETONG!E41+TØMRERE!E36+MALERE!E34+RØRLEGGERE!E25+TAKTEKKERE!E34+MURERE!E35 -> 64970.56 | F41: 290.5679729 | G41: 190.3441368 | H41: 280.6096077 | I41: 145175352 | J41: 11017593 | K41: 265.57 | L41: 0.1787048433 | M41: 0.05663142564
A42: Vestfold | B42: =BETONG!B42+TØMRERE!B38+MALERE!B35+MURERE!B36+TAKTEKKERE!B35 -> 4474365 | C42: =BETONG!C42+TØMRERE!C38+MALERE!C35+MURERE!C36+TAKTEKKERE!C35 -> 1732422 | D42: =BETONG!D42+TØMRERE!D38+MALERE!D35+MURERE!D36+TAKTEKKERE!D35 -> 16746 | E42: =BETONG!E42+TØMRERE!E38+MALERE!E35+MURERE!E36+TAKTEKKERE!E35 -> 8357 | F42: =IF(D42=0,0,B42/D42) -> 267.1900752 | G42: 207.3019026 | H42: 247.2527985 | I42: 2656616 | J42: 1644948 | K42: 233.41 | L42: 0.6842347558 | M42: 0.05930679264
A43: Østfold | B43: =BETONG!B66+TØMRERE!B39+MURERE!B38 -> 11588247.4 | C43: =BETONG!C66+TØMRERE!C39+MURERE!C38 -> 1888488.5 | D43: =BETONG!D66+TØMRERE!D39+MURERE!D38 -> 40663.5 | E43: =BETONG!E43+TØMRERE!E39+MURERE!E38 -> 6558 | F43: 284.9790943 | G43: 287.9671394 | H43: 285.3940663 | I43: 9240391 | J43: 872161 | K43: 290.21 | L43: 0.2540862611 | M43: -0.01659465124
A44: Oslo | B44: =BETONG!B44+TØMRERE!B40+MALERE!B36+RØRLEGGERE!B26+'BLIKK OG VENTILASJON'!B20+TAKTEKKERE!B36+MURERE!B37+ISOLATØR!B8 -> 96770586.75 | C44: =BETONG!C44+TØMRERE!C40+MALERE!C36+RØRLEGGERE!C26+'BLIKK OG VENTILASJON'!C20+TAKTEKKERE!C36+MURERE!C37+ISOLATØR!C8 -> 4434277.09 | D44: =BETONG!D44+TØMRERE!D40+MALERE!D36+RØRLEGGERE!D26+'BLIKK OG VENTILASJON'!D20+TAKTEKKERE!D36+MURERE!D37+ISOLATØR!D8 -> 311120.9 | E44: =BETONG!E44+TØMRERE!E40+MALERE!E36+RØRLEGGERE!E26+'BLIKK OG VENTILASJON'!E20+TAKTEKKERE!E36+MURERE!E37+ISOLATØR!E8 -> 24683.5 | F44: 311.0385279 | G44: 179.6453943 | H44: 301.3803984 | I44: 54529579 | J44: 6405994 | K44: 270.11 | L44: 0.7746439368 | M44: 0.115769125
A45: Landet i alt | B45: =SUM(B30:B44) -> 396654054.9 | C45: =SUM(C30:C44) -> 24161544.09 | D45: =SUM(D30:D44) -> 1353182.94 | E45: =SUM(E30:E44) -> 126934.31 | F45: =IF(D45=0,0,B45/D45) -> 293.1267038 | G45: 190.3468344 | H45: 284.3123401 | I45: =SUM(I30:I44) -> 328058310.7 | J45: =SUM(J30:J44) -> 21078225 | K45: 271.85 | L45: 0.2090961938 | M45: 0.04584270769
A48: ="MÅLESTATISTIKK FOR ALLE BYGGFAG - GJENNOMSNITT HELE ÅRET "&FORS!$A$14 -> MÅLESTATISTIKK FOR ALLE BYGGFAG - GJENNOMSNITT HELE ÅRET 2016
B50: Målesum i kroner | D50: Timer | F50: ="Fortjeneste hele "&FORS!$A$14-0 -> Fortjeneste hele 2016 | I50: =" Hele året "&FORS!$A$14-1 -> Hele året 2015 | L50: Endringer i %
B51: Innmålt m/ | C51: Innmålt m/ | D51: Innmålt m/ | E51: Innmålt m/ | F51: Innmålt m/ | G51: Innmålt m/ | H51: Gjennom- | I51: Innmålt m/ | J51: Innmålt m/ | K51: Gjen.snitt | L51: Innmålt m/ | M51: Gjen.snitt
B52: overskudd | C52: underskudd | D52: overskudd | E52: underskudd | F52: overskudd | G52: underskudd | H52: snitt | I52: overskudd | J52: underskudd | K52: fortjeneste | L52: overskudd | M52: fortjeneste
A53: Agder | B53: =B7+B30 -> 11097166 | C53: 1364247 | D53: 40318.5 | E53: 6566 | F53: =IF(D53=0,0,B53/D53) -> 275.2375708 | G53: 207.7744441 | H53: =IF(D53+E53=0,0,(B53+C53)/(D53+E53)) -> 265.7896106 | I53: 21303347 | J53: 489063 | K53: 268 | L53: =IF(I53=0,0,(B53-I53)/I53) -> -0.4790881452 | M53: =(H53-K53)/K53 -> -0.008247721497
A54: Bergen | B54: =B8+B31 -> 62427230.93 | C54: 0 | D54: 230581.93 | E54: 0 | F54: 270.7377414 | G54: 0 | H54: 270.7377414 | I54: 75439489 | J54: 0 | K54: 271.39 | L54: =IF(I54=0,0,(B54-I54)/I54) -> -0.1724860314 | M54: =(H54-K54)/K54 -> -0.002403399629
A55: Drammen - Bærum | B55: =B9+B32 -> 0 | C55: 0 | D55: 0 | E55: 0 | F55: 0 | G55: 0 | H55: 0 | I55: 4188999 | J55: 0 | K55: 360.74 | L55: -1 | M55: -1
B56: =B10+B33 -> 0 | C56: 0 | D56: 0 | E56: 0 | F56: 0 | G56: 0 | H56: 0 | I56: 1966967 | J56: 0 | K56: 291.58 | L56: -1 | M56: -1
A57: Haugesund | B57: =B11+B34 -> 13462564 | C57: 0 | D57: 51547.39 | E57: 0 | F57: 261.1686838 | G57: 0 | H57: 261.1686838 | I57: 16927742 | J57: 0 | K57: 255.65 | L57: -0.2047040887 | M57: 0.02158687192
A58: Hamar og Omegn | B58: =B12+B35 -> 21844867.88 | C58: 2981120.93 | D58: 75721.69 | E58: 19184.75 | F58: 288.4889109 | G58: 155.390137 | H58: 261.5838168 | I58: 23599667 | J58: 1209402 | K58: 265.76 | L58: -0.0743569441 | M58: -0.01571411515
A59: Nordland | B59: =B13+B36 -> 3386427 | C59: 1693791 | D59: 13766 | E59: 8251 | F59: 245.9993462 | G59: 205.2831172 | H59: 230.7407004 | I59: 7855496 | J59: 675503 | K59: 302.11 | L59: -0.5689098435 | M59: -0.2362361379
A60: Sandnes | B60: 59408568.83 | C60: 0 | D60: 200565.97 | E60: 0 | F60: 296.2046295 | G60: 0 | H60: 296.2046295 | I60: 74597382 | J60: 0 | K60: 318.53 | L60: -0.2036105392 | M60: -0.07008875309
A61: Stavanger | B61: 8368419 | C61: 226322 | D61: 26528.5 | E61: 1236 | F61: 315.4501385 | G61: 183.1084142 | H61: 309.558645 | I61: 12931392 | J61: 467693 | K61: 294.1 | L61: -0.3528601561 | M61: 0.05256254686
A62: Telemark | B62: 39647561.57 | C62: 548388 | D62: 136791.63 | E62: 1556 | F62: 289.8390901 | G62: 352.4344473 | H62: 290.543102 | I62: 23005099 | J62: 424120 | K62: 256.02 | L62: 0.723424949 | M62: 0.1348453323
A63: Tromsø | B63: 0 | C63: 0 | D63: 0 | E63: 0 | F63: 0 | G63: 0 | H63: 0 | I63: 1444903 | J63: 0 | K63: 248.55 | L63: -1 | M63: -1
A64: Trondheim | B64: =B18+B41 -> 307983652 | C64: 24323324.98 | D64: 1063170.866 | E64: 128173.0042 | F64: 289.6840591 | G64: 189.7694848 | H64: 278.9345589 | I64: 273703631 | J64: 16190480 | K64: 270.03 | L64: 0.1252450357 | M64: 0.03297618371
A65: Vestfold | B65: =B19+B42 -> 11312381 | C65: 1732422 | D65: 39287 | E65: =E19+E42 -> 8357 | F65: 287.9420928 | G65: =IF(E65=0,0,C65/E65) -> 207.3019026 | H65: 273.7973932 | I65: 11171399 | J65: 2080284 | K65: 238.83 | L65: 0.01261990553 | M65: 0.1464112263
A66: Østfold | B66: 21674395.4 | C66: 9226708.04 | D66: 127986.5 | E66: 10013 | F66: 169.3490751 | G66: 921.4728892 | H66: 223.9218507 | I66: 25686303 | J66: 3802314 | K66: 271.44 | L66: -0.1561885959 | M66: -0.1750594948
A67: Oslo | B67: =B21+B44 -> 186914916.8 | C67: 7300895.31 | D67: 631225.74 | E67: 42345.5 | F67: 296.1142187 | G67: 172.4125423 | H67: =IF(D67+E67=0,0,(B67+C67)/(D67+E67)) -> 288.3374476 | I67: 125100601 | J67: 6694972 | K67: 280.95 | L67: 0.4941168575 | M67: 0.02629452802
A68: Landet i alt | B68: =SUM(B53:B67) -> 747528150.5 | C68: =SUM(C53:C67) -> 49397219.26 | D68: =SUM(D53:D67) -> 2637491.716 | E68: =SUM(E53:E67) -> 225682.2542 | F68: =IF(D68=0,0,B68/D68) -> 283.4238856 | G68: 218.8795013 | H68: =IF(D68+E68=0,0,(B68+C68)/(D68+E68)) -> 278.3363421 | I68: =SUM(I53:I67) -> 698922417 | J68: =SUM(J53:J67) -> 32033831 | K68: 275.9 | L68: 0.06954381818 | M68: =(H68-K68)/K68 -> 0.008830525897

Sheet BETONG
A2: ="MÅLESTATISTIKK FOR BETONGFAGENE - 1. HALVÅR "&FORS!$A$14 -> MÅLESTATISTIKK FOR BETONGFAGENE - 1. HALVÅR 2016
B4: Målesum i kroner | D4: Timer | F4: ="Fortjeneste 1. halvår "&FORS!$A$14-0 -> Fortjeneste 1. halvår 2016 | I4: =" 1. halvår "&FORS!$A$14-1 -> 1. halvår 2015 | L4: Endringer i %
B5: Innmålt m/ | C5: Innmålt m/ | D5: Innmålt m/ | E5: Innmålt m/ | F5: Innmålt m/ | G5: Innmålt m/ | H5: Gjennom- | I5: Innmålt m/ | J5: Innmålt m/ | K5: Gjen.snitt | L5: Innmålt m/ | M5: Gjen.snitt
B6: overskudd | C6: underskudd | D6: overskudd | E6: underskudd | F6: overskudd | G6: underskudd | H6: snitt | I6: overskudd | J6: underskudd | K6: fortjeneste | L6: overskudd | M6: fortjeneste
A7: Agder | B7: 1955415 | C7: 211313 | D7: 7079 | E7: 1032 | F7: =IF(D7=0,0,B7/D7) -> 276.2275745 | G7: =IF(E7=0,0,C7/E7) -> 204.7606589 | H7: =IF(D7+E7=0,0,(B7+C7)/(D7+E7)) -> 267.1345087 | I7: 3299282 | K7: 270.03 | L7: =IF(I7=0,0,(B7-I7)/I7) -> -0.4073210474 | M7: =IF(K7=0,0,(H7-K7)/K7) -> -0.01072285045
A8: Bergen | B8: 22683267 | D8: 80950.66 | F8: 280.2110199 | G8: 0 | H8: 280.2110199 | I8: 37393459 | K8: 282.96 | L8: =IF(I8=0,0,(B8-I8)/I8) -> -0.3933894428 | M8: =IF(K8=0,0,(H8-K8)/K8) -> -0.009715083765
A9: Drammen - Bærum | F9: 0 | G9: 0 | H9: 0 | L9: 0 | M9: 0
A10: Glåmdal | F10: 0 | G10: 0 | H10: 0 | K10: 0 | L10: 0 | M10: 0
A11: Haugesund | B11: 7182045 | D11: 27760.92 | F11: 258.7106263 | G11: 0 | H11: 258.7106263 | I11: 6789716 | K11: 254.51 | L11: 0.05778282921 | M11: 0.01650475936
A12: Hamar og Omegn | B12: 3542121.95 | D12: 14143.93 | F12: 250.4340696 | G12: 0 | H12: 250.4340696 | I12: 3604654 | K12: 281.23 | L12: -0.01734758731 | M12: -0.1095044284
A13: Nordland | F13: =IF(D13=0,0,B13/D13) -> 0 | G13: 0 | H13: 0 | K13: 0 | L13: =IF(I13=0,0,(B13-I13)/I13) -> 0 | M13: 0
A14: Sandnes | B14: 26362513.16 | D14: 88921.19 | F14: =IF(D14=0,0,B14/D14) -> 296.4705394 | G14: 0 | H14: 296.4705394 | I14: 40738774 | K14: 321.21 | L14: =IF(I14=0,0,(B14-I14)/I14) -> -0.3528888925 | M14: -0.07701958419
A15: Stavanger | F15: 0 | G15: 0 | H15: 0 | L15: 0 | M15: 0
A16: Telemark | B16: 1181030.6 | D16: 3435.25 | F16: 343.7975693 | G16: 0 | H16: 343.7975693 | I16: 1165010 | K16: 332.2 | L16: 0.01375146994 | M16: 0.03491140674
A17: Tromsø | F17: 0 | G17: 0 | H17: 0 | I17: 1444903 | K17: 248.55
A18: Trondheim | B18: 43448814 | D18: 144563.99 | F18: 300.5507388 | G18: 0 | H18: 300.5507388 | I18: 23961984 | K18: 286.67 | L18: 0.8132394212 | M18: 0.04842061887
A19: Vestfold | B19: 1419315 | D19: 5002 | F19: 283.7495002 | G19: 0 | H19: 283.7495002 | I19: 2687384 | K19: 260.63 | L19: -0.4718599947 | M19: 0.08870621264
A20: Østfold | B20: 3461921.9 | C20: 630518.5 | D20: 11960 | E20: 3205 | F20: 289.4583528 | G20: 196.7296412 | H20: 269.8608902 | I20: 3241424 | J20: 2724456 | K20: 232.4 | L20: 0.06802501 | M20: 0.1611914381
A21: Oslo | B21: 11802983 | D21: 39092 | F21: 301.9283485 | G21: 0 | H21: 301.9283485 | I21: 17793000 | K21: 290.43 | L21: -0.3366501995 | M21: 0.03959077406
A22: Landet i alt | B22: =SUM(B7:B21) -> 123039426.6 | C22: =SUM(C7:C21) -> 841831.5 | D22: =SUM(D7:D21) -> 422908.94 | E22: =SUM(E7:E21) -> 4237 | F22: =IF(D22=0,0,B22/D22) -> 290.9359793 | G22: =IF(E22=0,0,C22/E22) -> 198.6857446 | H22: =IF(D22+E22=0,0,(B22+C22)/(D22+E22)) -> 290.0209191 | I22: =SUM(I7:I21) -> 142119590 | J22: =SUM(J7:J21) -> 2724456 | K22: 289.2 | L22: -0.1342542811 | M22: 0.002838586111
A25: ="MÅLESTATISTIKK FOR BETONGFAGENE - 2. HALVÅR "&FORS!$A$14 -> MÅLESTATISTIKK FOR BETONGFAGENE - 2. HALVÅR 2016
B27: Målesum i kroner | D27: Timer | F27: ="Fortjeneste 2. halvår "&FORS!$A$14-0 -> Fortjeneste 2. halvår 2016 | I27: =" 2. halvår "&FORS!$A$14-1 -> 2. halvår 2015 | L27: Endringer i %
B28: Innmålt m/ | C28: Innmålt m/ | D28: Innmålt m/ | E28: Innmålt m/ | F28: Innmålt m/ | G28: Innmålt m/ | H28: Gjennom- | I28: Innmålt m/ | J28: Innmålt m/ | K28: Gjen.snitt | L28: Innmålt m/ | M28: Gjen.snitt
B29: overskudd | C29: underskudd | D29: overskudd | E29: underskudd | F29: overskudd | G29: underskudd | H29: snitt | I29: overskudd | J29: underskudd | K29: fortjeneste | L29: overskudd | M29: fortjeneste
A30: Agder | B30: 1215187 | D30: 4141 | F30: =IF(D30=0,0,B30/D30) -> 293.4525477 | G30: =IF(E30=0,0,#REF!/E30) -> 0 | H30: =IF(D30+E30=0,0,(B30+C30)/(D30+E30)) -> 293.4525477 | I30: 4355976 | J30: 83831 | K30: 276.23 | L30: =IF(I30=0,0,(B30-I30)/I30) -> -0.7210299138 | M30: =IF(K30=0,0,(H30-K30)/K30) -> 0.06234857797
A31: Bergen | B31: 22819678.5 | D31: 80537.98 | G31: =IF(E31=0,0,C31/E31) -> 0 | H31: =IF(D31+E31=0,0,(B31+C31)/(D31+E31)) -> 283.3405866 | I31: 20581258.77 | K31: 278.42 | L31: =IF(I31=0,0,(B31-I31)/I31) -> 0.1087600984 | M31: =IF(K31=0,0,(H31-K31)/K31) -> 0.01767325135
A32: Drammen - Bærum | F32: =IF(D32=0,0,B32/D32) -> 0 | G32: =IF(E32=0,0,C32/E32) -> 0 | H32: =IF(D32+E32=0,0,(B32+C32)/(D32+E32)) -> 0 | I32: 3360922.67 | K32: 356.99 | L32: =IF(I32=0,0,(B32-I32)/I32) -> -1 | M32: -1
F33: =IF(D33=0,0,B33/D33) -> 0 | G33: 0 | H33: 0 | K33: 0 | L33: 0 | M33: 0
A34: Haugesund | B34: 6280519 | D34: 23786.47 | F34: =IF(D34=0,0,B34/D34) -> 264.0374549 | G34: 0 | H34: 264.0374549 | I34: 10138026 | K34: 256.42 | L34: -0.3804988269 | M34: 0.02970694527
A35: Hamar og Omegn | B35: 1160879.45 | D35: 3909.6 | F35: 296.9304916 | G35: 0 | H35: 296.9304916 | I35: 5237487 | K35: 269.48 | L35: -0.7783518222 | M35: 0.1018646713
A36: Nordland | F36: 0 | G36: 0 | H36: 0 | K36: 0 | L36: 0 | M36: 0
A37: Sandnes | B37: 33046055.67 | D37: 111644.78 | F37: 295.9928415 | G37: 0 | H37: =IF(D37+E37=0,0,(B37+C37)/(D37+E37)) -> 295.9928415 | I37: 33858607.24 | K37: 315.36 | L37: -0.02399837549 | M37: -0.06141285676
A38: Stavanger | F38: 0 | G38: 0 | H38: 0 | K38: 0 | L38: 0 | M38: 0
A39: Telemark | B39: 9209474.4 | D39: 29981.4 | F39: 307.1729272 | G39: 0 | H39: 307.1729272 | I39: 484919 | K39: 315.64 | L39: 17.99177883 | M39: -0.02682509436
F40: 0 | G40: 0 | H40: 0 | L40: 0 | M40: 0
A41: Trondheim | B41: 25045308.06 | D41: 85825.8 | F41: 291.8156086 | G41: 0 | H41: 291.8156086 | I41: 32689747.89 | K41: 290.5 | L41: -0.2338482345 | M41: 0.004528773126
A42: Vestfold | B42: 613416 | D42: 2537 | F42: 241.7879385 | G42: 0 | H42: 241.7879385 | I42: 179975 | K42: 229.27 | L42: 2.408340047 | M42: 0.05459911244
A43: Østfold | B43: 3603657 | C43: 72160 | D43: 12316 | E43: 350 | F43: 292.5996265 | G43: 206.1714286 | H43: 290.2113532 | I43: 2590332 | K43: 281.94 | L43: 0.3911950283 | M43: 0.02933728179
A44: Oslo | B44: 12082961 | D44: 37513 | F44: 322.1006318 | G44: 0 | H44: 322.1006318 | I44: 7182385 | J44: 1482017 | K44: 281.14 | L44: 0.6823048333 | M44: 0.1456947847
A45: Landet i alt | B45: =SUM(B30:B44) -> 115077136.1 | C45: =SUM(C30:C44) -> 72160 | D45: =SUM(D30:D44) -> 392193.03 | E45: =SUM(E30:E44) -> 350 | F45: =IF(D45=0,0,B45/D45) -> 293.4196359 | G45: =IF(E45=0,0,C45/E45) -> 206.1714286 | H45: =IF(D45+E45=0,0,(B45+C45)/(D45+E45)) -> 293.3418435 | I45: =SUM(I30:I44) -> 120659636.6 | J45: 1565848 | K45: 290.6 | L45: -0.04626651172 | M45: 0.009435111897
A48: ="MÅLESTATISTIKK FOR BETONGFAGENE - GJENNOMSNITT HELE ÅRET "&FORS!$A$14 -> MÅLESTATISTIKK FOR BETONGFAGENE - GJENNOMSNITT HELE ÅRET 2016
B50: Målesum i kroner | D50: Timer | F50: ="Fortjeneste hele "&FORS!$A$14-0 -> Fortjeneste hele 2016 | I50: =" Hele året "&FORS!$A$14-1 -> Hele året 2015 | L50: Endringer i %
B51: Innmålt m/ | C51: Innmålt m/ | D51: Innmålt m/ | E51: Innmålt m/ | F51: Innmålt m/ | G51: Innmålt m/ | H51: Gjennom- | I51: Innmålt m/ | J51: Innmålt m/ | K51: Gjen.snitt | L51: Innmålt m/ | M51: Gjen.snitt
B52: overskudd | C52: underskudd | D52: overskudd | E52: underskudd | F52: overskudd | G52: underskudd | H52: snitt | I52: overskudd | J52: underskudd | K52: fortjeneste | L52: overskudd | M52: fortjeneste
A53: Agder | B53: =B7+B30 -> 3170602 | C53: =C7+C30 -> 211313 | D53: =D7+D30 -> 11220 | E53: =E7+E30 -> 1032 | F53: =IF(D30=0,0,B30/D30) -> 293.4525477 | G53: =IF(E53=0,0,C30/E53) -> 0 | H53: =IF(D30+E53=0,0,(B30+C30)/(D30+E53)) -> 234.9095303 | I53: =I7+I30 -> 7655258 | J53: =J7+J30 -> 83831 | K53: 273.55 | L53: =IF(I53=0,0,(B30-I53)/I53) -> -0.8412611306 | M53: =IF(K53=0,0,(H53-K53)/K53) -> -0.1412556013
A54: Bergen | B54: =B8+B31 -> 45502945.5 | D54: =D8+D31 -> 161488.64 | F54: =IF(D54=0,0,B54/D54) -> 281.7718045 | G54: =IF(E54=0,0,C54/E54) -> 0 | H54: =IF(D54+E54=0,0,(B54+C54)/(D54+E54)) -> 281.7718045 | I54: =I8+I31 -> 57974717.77 | J54: 0 | K54: 281.33 | L54: =IF(I54=0,0,(B54-I54)/I54) -> -0.2151243292 | M54: =IF(K54=0,0,(H54-K54)/K54) -> 0.00157041377
A55: Drammen - Bærum | F55: 0 | G55: 0 | H55: 0 | I55: 3360922.67 | J55: 0 | K55: 356.99 | L55: -1 | M55: -1
F56: 0 | G56: 0 | H56: 0 | I56: 0 | J56: 0 | K56: 0 | L56: 0 | M56: 0
A57: Haugesund | B57: =B11+B34 -> 13462564 | D57: =D11+D34 -> 51547.39 | F57: 261.1686838 | G57: 0 | H57: 261.1686838 | I57: 16927742 | J57: 0 | K57: 255.65 | L57: -0.2047040887 | M57: 0.02158687192
A58: Hamar og Omegn | B58: =B12+B35 -> 4703001.4 | D58: =D12+D35 -> 18053.53 | F58: 260.5031481 | G58: 0 | H58: 260.5031481 | I58: 8842141 | J58: 0 | K58: 274.15 | L58: -0.4681150866 | M58: -0.04977877754
A59: Nordland | F59: 0 | G59: 0 | H59: 0 | I59: 0 | J59: 0 | K59: 0 | L59: 0 | M59: 0
A60: Sandnes | B60: =B14+B37 -> 59408568.83 | D60: =D14+D37 -> 200565.97 | F60: =IF(D60=0,0,B60/D60) -> 296.2046295 | G60: 0 | H60: =IF(D60+E60=0,0,(B60+C60)/(D60+E60)) -> 296.2046295 | I60: 74597381.24 | J60: 0 | K60: 318.53 | L60: =IF(I60=0,0,(B14-I60)/I60) -> -0.6466026994 | M60: -0.07008875309
A61: Stavanger | F61: 0 | G61: 0 | H61: 0 | I61: 0 | J61: 0 | L61: 0 | M61: 0
A62: Telemark | B62: =B16+B39 -> 10390505 | D62: =D16+D39 -> 33416.65 | F62: 310.9379606 | G62: 0 | H62: 310.9379606 | I62: 1649929 | J62: 0 | K62: 327.16 | L62: 5.297546743 | M62: -0.04958442179
F63: 0 | G63: 0 | H63: 0 | I63: 1444903 | J63: 0 | K63: 248.55 | L63: -1 | M63: -1
A64: Trondheim | B64: =B18+B41 -> 68494122.06 | D64: =D18+D41 -> 230389.79 | F64: 297.2966904 | G64: 0 | H64: 297.2966904 | I64: 56651731.89 | J64: 0 | K64: 288.87 | L64: 0.209038449 | M64: 0.02917122014
A65: Vestfold | B65: =B19+B42 -> 2032731 | D65: =D19+D42 -> 7539 | F65: =IF(D65=0,0,B65/D65) -> 269.6287306 | G65: 0 | H65: 269.6287306 | I65: 2867359 | J65: 0 | K65: 258.41 | L65: =IF(I65=0,0,(B42-I65)/I65) -> -0.7860693412 | M65: 0.04341445997
A66: Østfold | B66: =B20+B43 -> 7065578.9 | C66: =C20+C43 -> 702678.5 | D66: =D20+D43 -> 24276 | E66: =E20+E43 -> 3555 | F66: =IF(D66=0,0,B66/D66) -> 291.0520226 | G66: 197.6592124 | H66: 279.1224678 | I66: 5831756 | J66: 2724456 | K66: 245.46 | L66: =IF(I66=0,0,(B43-I66)/I66) -> -0.3820631384 | M66: 0.1371403396
A67: Oslo | B67: =B21+B44 -> 23885944 | D67: =D21+D44 -> 76605 | F67: 311.8065923 | G67: 0 | H67: 311.8065923 | I67: 24975385 | J67: 1482017 | K67: 287.32 | L67: -0.04362058883 | M67: 0.08522411339
A68: Landet i alt | B68: =SUM(B53:B67) -> 238116562.7 | C68: =SUM(C53:C67) -> 913991.5 | D68: =SUM(D53:D67) -> 815101.97 | E68: =SUM(E53:E67) -> 4587 | F68: =IF(D68=0,0,B68/D68) -> 292.1310112 | G68: =IF(E68=0,0,C68/E68) -> 199.2569217 | H68: =IF(D68+E68=0,0,(B68+C68)/(D68+E68)) -> 291.6112854 | I68: 262779226.6 | J68: 4290304 | K68: 289.79 | L68: -0.09385317174 | M68: 0.006284845662

Sheet TØMRERE
A2: ="MÅLESTATISTIKK FOR TØMRERE - 1. HALVÅR "&FORS!$A$14 -> MÅLESTATISTIKK FOR TØMRERE - 1. HALVÅR 2016
B4: Målesum i kroner | D4: Timer | F4: ="Fortjeneste 1. halvår "&FORS!$A$14-0 -> Fortjeneste 1. halvår 2016 | I4: =" 1. halvår "&FORS!$A$14-1 -> 1. halvår 2015 | L4: Endringer i %
B5: Innmålt m/ | C5: Innmålt m/ | D5: Innmålt m/ | E5: Innmålt m/ | F5: Innmålt m/ | G5: Innmålt m/ | H5: Gjennom- | I5: Innmålt m/ | J5: Innmålt m/ | K5: Gjen.snitt | L5: Innmålt m/ | M5: Gjen.snitt
B6: overskudd | C6: underskudd | D6: overskudd | E6: underskudd | F6: overskudd | G6: underskudd | H6: snitt | I6: overskudd | J6: underskudd | K6: fortjeneste | L6: overskudd | M6: fortjeneste
A7: Agder | B7: 3858234 | D7: 14424 | F7: =IF(D7=0,0,B7/D7) -> 267.4871048 | G7: =IF(E7=0,0,C7/E7) -> 0 | H7: =IF(D7+E7=0,0,(B7+C7)/(D7+E7)) -> 267.4871048 | I7: 7095854 | K7: 261.22 | L7: =IF(I7=0,0,(B7-I7)/I7) -> -0.4562692524 | M7: =IF(K7=0,0,(H7-K7)/K7) -> 0.02399167302
A8: Bergen | B8: 5272744.75 | D8: 20267.78 | F8: =IF(D8=0,0,B8/D8) -> 260.1540351 | G8: =IF(E8=0,0,C8/E8) -> 0 | H8: =IF(D8+E8=0,0,(B8+C8)/(D8+E8)) -> 260.1540351 | I8: 7962793 | K8: 242.1 | L8: =IF(I8=0,0,(B8-I8)/I8) -> -0.3378272234 | M8: =IF(K8=0,0,(H8-K8)/K8) -> 0.07457263579
A9: Drammen - Bærum | F9: 0 | G9: 0 | H9: 0 | K9: 0 | L9: 0 | M9: 0
A10: Glåmdal | F10: 0 | G10: 0 | H10: 0 | I10: 1966967 | K10: 291.58
A11: Hamar og Omegn | B11: 8561908.05 | C11: 396393.59 | D11: 26674.5 | E11: 2043.5 | F11: 320.9772648 | G11: 193.9777783 | H11: 311.9403036 | I11: 3854584 | J11: 387453 | K11: 266.84 | L11: 1.221227518 | M11: 0.1690162781
A12: Nordland | F12: 0 | G12: 0 | H12: 0 | I12: 7370371 | J12: 675503 | K12: 306.66 | L12: -1 | M12: -1
A13: Stavanger | F13: 0 | G13: 0 | H13: 0 | I13: 1494422 | K13: 308.32 | L13: -1 | M13: -1
A14: Telemark | B14: 12825809 | C14: 138352 | D14: 47460.18 | E14: 678 | F14: 270.243581 | G14: 204.0589971 | H14: 269.3114073 | I14: 9273831 | J14: 424120 | K14: 249.66 | L14: 0.3830108614 | M14: 0.07871267839
A15: Trondheim | B15: 63949242 | C15: 7714029 | D15: 223489 | E15: 39750 | F15: =IF(D15=0,0,B15/D15) -> 286.1404454 | G15: =IF(E15=0,0,C15/E15) -> 194.0636226 | H15: =IF(D15+E15=0,0,(B15+C15)/(D15+E15)) -> 272.2365265 | I15: 70962050 | J15: 2099348 | K15: 282.67 | L15: =IF(I15=0,0,(B15-I15)/I15) -> -0.0988247662 | M15: -0.03691043796
A16: Tromsø | F16: 0 | G16: 0 | H16: 0 | L16: =IF(I16=0,0,(B16-I16)/I16) -> 0 | M16: 0
A17: Vestfold | B17: 4939638 | D17: 16135 | F17: 306.1442826 | G17: 0 | H17: 306.1442826 | I17: 5105559 | J17: 435336 | K17: 226.99 | L17: -0.03249810648 | M17: 0.348712642
A18: Østfold | B18: 4100973.4 | C18: 43460 | D18: 15110 | E18: 250 | F18: 271.4079021 | G18: 173.84 | H18: 269.8198828 | I18: 10848517 | J18: 1077858 | K18: 280.28 | L18: -0.6219784326 | M18: -0.03732024114
A19: Oslo | B19: 43848096.32 | D19: 141045.7 | F19: 310.8786466 | G19: 0 | H19: 310.8786466 | I19: 38108787 | K19: 290.93 | L19: 0.1506033063 | M19: 0.06856854421
A20: Landet i alt | B20: =SUM(B7:B19) -> 147356645.5 | C20: =SUM(C7:C19) -> 8292234.59 | D20: =SUM(D7:D19) -> 504606.16 | E20: =SUM(E7:E19) -> 42721.5 | F20: =IF(D20=0,0,B20/D20) -> 292.023081 | G20: =IF(E20=0,0,C20/E20) -> 194.0997996 | H20: =IF(D20+E20=0,0,(B20+C20)/(D20+E20)) -> 284.379708 | I20: =SUM(I7:I19) -> 164043735 | J20: =SUM(J7:J19) -> 5099618 | K20: 277.72 | L20: -0.1017234183 | M20: 0.02397993649
L21: 0 | M21: 0
L22: 0 | M22: 0
A23: ="MÅLESTATISTIKK FOR TØMRERE - 2. HALVÅR "&FORS!$A$14 -> MÅLESTATISTIKK FOR TØMRERE - 2. HALVÅR 2016
B25: Målesum i kroner | D25: Timer | F25: ="Fortjeneste 2. halvår "&FORS!$A$14-0 -> Fortjeneste 2. halvår 2016 | I25: =" 2. halvår "&FORS!$A$14-1 -> 2. halvår 2015 | L25: Endringer i %
B26: Innmålt m/ | C26: Innmålt m/ | D26: Innmålt m/ | E26: Innmålt m/ | F26: Innmålt m/ | G26: Innmålt m/ | H26: Gjennom- | I26: Innmålt m/ | J26: Innmålt m/ | K26: Gjen.snitt | L26: Innmålt m/ | M26: Gjen.snitt
B27: overskudd | C27: underskudd | D27: overskudd | E27: underskudd | F27: overskudd | G27: underskudd | H27: snitt | I27: overskudd | J27: underskudd | K27: fortjeneste | L27: overskudd | M27: fortjeneste
A28: Agder | B28: 3894027 | C28: 1075528 | D28: 14044 | E28: 5107 | F28: =IF(D28=0,0,B28/D28) -> 277.2733552 | G28: =IF(E28=0,0,C28/E28) -> 210.598786 | H28: =IF(D28+E28=0,0,(B28+C28)/(D28+E28)) -> 259.493238 | I28: 5990442 | J28: 405232 | K28: 264.74 | L28: =IF(I28=0,0,(B28-I28)/I28) -> -0.3499599863 | M28: =IF(K28=0,0,(H28-K28)/K28) -> -0.01981854668
A29: Bergen | B29: 6037250.97 | D29: 24510.99 | F29: =IF(D29=0,0,B29/D29) -> 246.3079202 | G29: 0 | H29: =IF(D29+E29=0,0,(B29+C29)/(D29+E29)) -> 246.3079202 | I29: 2803231 | K29: 252.66 | L29: =IF(I29=0,0,(B29-I29)/I29) -> 1.153675873 | M29: =IF(K29=0,0,(H29-K29)/K29) -> -0.0251408207
A30: Drammen - Bærum | F30: =IF(D30=0,0,B30/D30) -> 0 | G30: 0 | H30: =IF(D30+E30=0,0,(B30+C30)/(D30+E30)) -> 0 | I30: 828076 | K30: 376.81 | L30: -1 | M30: -1
F31: 0 | G31: 0 | H31: 0 | L31: 0 | M31: 0
A32: Hamar og Omegn | B32: 3223014.72 | C32: 2315729.34 | D32: 12639.76 | E32: 15494.25 | F32: 254.9901834 | G32: 149.4573368 | H32: 196.8700537 | I32: 5061733 | K32: 274.68 | L32: -0.3632586468 | M32: -0.2832748882
A33: Nordland | F33: 0 | G33: 0 | H33: 0 | I33: 485125 | K33: 242.44 | L33: -1 | M33: -1
A34: Stavanger | F34: 0 | G34: 0 | H34: 0 | L34: 0 | M34: 0
A35: Telemark | B35: 13084266.38 | C35: 179280 | D35: 45857.1 | E35: 878 | F35: =IF(D35=0,0,B35/D35) -> 285.3269478 | G35: =IF(E35=0,0,C35/E35) -> 204.191344 | H35: =IF(D35+E35=0,0,(B35+C35)/(D35+E35)) -> 283.8026746 | I35: 9681769 | K35: 239.4 | L35: 0.3514334395 | M35: 0.1854748315
A36: Trondheim | B36: 95137382 | C36: 4282432 | D36: 320141 | E36: 21126 | F36: 297.1733767 | G36: 202.7090789 | H36: 291.3256014 | I36: 69545888 | J36: 5171885 | K36: 264.36 | L36: 0.3679799732 | M36: 0.1020033339
F37: 0 | G37: 0 | H37: 0 | K37: 0 | L37: 0 | M37: 0
A38: Vestfold | B38: 3605981 | C38: 1732422 | D38: 13403 | E38: 8357 | F38: =IF(D38=0,0,B38/D38) -> 269.0428262 | G38: 207.3019026 | H38: 245.3310202 | I38: 2476641 | J38: 1644948 | K38: 233.59 | L38: 0.4559966503 | M38: 0.05026336838
A39: Østfold | B39: 3816941 | C39: 1185810 | D39: 14230 | E39: 6208 | F39: 268.2319747 | G39: 191.0132088 | H39: 244.7769351 | I39: 3383309 | K39: 284.8 | L39: 0.1281680154 | M39: -0.1405304244
A40: Oslo | B40: 43016139.35 | D40: 131030.2 | F40: =IF(D40=0,0,B40/D40) -> 328.2917934 | G40: =IF(E40=0,0,C40/E40) -> 0 | H40: =IF(D40+E40=0,0,(B40+C40)/(D40+E40)) -> 328.2917934 | I40: 8924526.85 | K40: 319.81 | L40: 3.819991028 | M40: 0.02652135149
A41: Landet i alt | B41: =SUM(B28:B40) -> 171815002.4 | C41: =SUM(C28:C40) -> 10771201.34 | D41: =SUM(D28:D40) -> 575856.05 | E41: =SUM(E28:E40) -> 57170.25 | F41: =IF(D41=0,0,B41/D41) -> 298.3645 | G41: =IF(E41=0,0,C41/E41) -> 188.4057065 | H41: =IF(D41+E41=0,0,(B41+C41)/(D41+E41)) -> 288.4338356 | I41: =SUM(I28:I40) -> 109180740.8 | J41: =SUM(J28:J40) -> 7222065 | K41: 265.52 | L41: 0.5736750006 | M41: 0.08629796484
A44: ="MÅLESTATISTIKK FOR TØMRERE - GJENNOMSNITT HELE ÅRET "&FORS!$A$14 -> MÅLESTATISTIKK FOR TØMRERE - GJENNOMSNITT HELE ÅRET 2016
B46: Målesum i kroner | D46: Timer | F46: ="Fortjeneste hele "&FORS!$A$14-0 -> Fortjeneste hele 2016 | I46: =" Hele året "&FORS!$A$14-1 -> Hele året 2015 | L46: Endringer i %
B47: Innmålt m/ | C47: Innmålt m/ | D47: Innmålt m/ | E47: Innmålt m/ | F47: Innmålt m/ | G47: Innmålt m/ | H47: Gjennom- | I47: Innmålt m/ | J47: Innmålt m/ | K47: Gjen.snitt | L47: Innmålt m/ | M47: Gjen.snitt
B48: overskudd | C48: underskudd | D48: overskudd | E48: underskudd | F48: overskudd | G48: underskudd | H48: snitt | I48: overskudd | J48: underskudd | K48: fortjeneste | L48: overskudd | M48: fortjeneste
A49: Agder | B49: =B7+B28 -> 7752261 | C49: =C7+C28 -> 1075528 | D49: =D7+D28 -> 28468 | E49: =E7+E28 -> 5107 | F49: =IF(D49=0,0,B49/D49) -> 272.314915 | G49: =IF(E49=0,0,C49/E49) -> 210.598786 | H49: =IF(D49+E49=0,0,(B49+C49)/(D49+E49)) -> 262.927446 | I49: =I7+I28 -> 13086296 | J49: =J7+J28 -> 405232 | K49: 263 | L49: =IF(I49=0,0,(B49-I49)/I49) -> -0.4076046423 | M49: =IF(K49=0,0,(H49-K49)/K49) -> -0.0002758706601
A50: Bergen | B50: =B8+B29 -> 11309995.72 | D50: =D8+D29 -> 44778.77 | F50: =IF(D50=0,0,B50/D50) -> 252.5749528 | G50: =IF(E50=0,0,C50/E50) -> 0 | H50: =IF(D50+E50=0,0,(B50+C50)/(D50+E50)) -> 252.5749528 | I50: =I8+I29 -> 10766024 | J50: 0 | K50: 245 | L50: =IF(I50=0,0,(B50-I50)/I50) -> 0.05052670512 | M50: =IF(K50=0,0,(H50-K50)/K50) -> 0.03091817477
A51: Drammen - Bærum | F51: 0 | G51: 0 | H51: 0 | I51: 828076 | J51: 0 | K51: 377 | L51: -1 | M51: -1
F52: 0 | G52: 0 | H52: 0 | I52: 1966967 | J52: 0 | K52: 292 | L52: -1 | M52: -1
A53: Hamar og Omegn | B53: =B11+B32 -> 11784922.77 | C53: =C11+C32 -> 2712122.93 | D53: =D11+D32 -> 39314.26 | E53: =E11+E32 -> 17537.75 | F53: 299.7620398 | G53: 154.6448621 | H53: 254.9961857 | I53: 8916317 | J53: 387453 | K53: 271 | L53: 0.3217254131 | M53: -0.05905466527
A54: Nordland | F54: 0 | G54: 0 | H54: 0 | I54: 7855496 | J54: 675503 | K54: 302 | L54: -1 | M54: -1
A55: Stavanger | F55: 0 | G55: 0 | H55: 0 | I55: 1494422 | J55: 0 | K55: 308 | L55: -1 | M55: -1
A56: Telemark | B56: =B14+B35 -> 25910075.38 | C56: 317632 | D56: 93317.28 | E56: 1556 | F56: 277.6557073 | G56: =IF(E56=0,0,C56/E56) -> 204.1336761 | H56: =IF(D56+E56=0,0,(B56+C56)/(D56+E56)) -> 276.4498854 | I56: 18955600 | J56: 424120 | K56: 244 | L56: 0.3668823662 | M56: 0.1329913335
A57: Trondheim | B57: 159086624 | C57: 11996461 | D57: 543630 | E57: 60876 | F57: 292.6376837 | G57: 197.063884 | H57: =IF(D57+E57=0,0,(B57+C57)/(D57+E57)) -> 283.013047 | I57: 140507938 | J57: 7271233 | K57: 273 | L57: 0.1322251701 | M57: 0.0366778279
F58: 0 | G58: 0 | H58: 0 | I58: 0 | J58: 0 | L58: 0 | M58: 0
A59: Vestfold | B59: =B17+B38 -> 8545619 | D59: =D17+D38 -> 29538 | F59: =IF(D59=0,0,B59/D59) -> 289.3093304 | G59: 0 | H59: 289.3093304 | I59: 7582200 | J59: 2080284 | K59: 230 | L59: =IF(I59=0,0,(B17-I59)/I59) -> -0.3485218011 | M59: 0.2578666537
A60: Østfold | B60: =B18+B39 -> 7917914.4 | C60: =C18+C39 -> 1229270 | D60: =D18+D39 -> 29340 | E60: =E18+E39 -> 6458 | F60: =IF(D60=0,0,B60/D60) -> 269.8675665 | G60: =IF(E60=0,0,C60/E60) -> 190.3484051 | H60: =IF(D60+E60=0,0,(B60+C60)/(D60+E60)) -> 255.5222191 | I60: 14231826 | J60: 1077858 | K60: 281 | L60: =IF(I60=0,0,(B18-I60)/I60) -> -0.7118448891 | M60: -0.09066825937
A61: Oslo | B61: =B19+B40 -> 86864235.67 | D61: =D19+D40 -> 272075.9 | F61: =IF(D61=0,0,B61/D61) -> 319.2647187 | G61: 0 | H61: =IF(D61+E61=0,0,(B61+C61)/(D61+E61)) -> 319.2647187 | I61: 47033313.85 | J61: 0 | K61: 296 | L61: =IF(I61=0,0,(B19-I61)/I61) -> -0.06772258362 | M61: 0.07859702253
A62: Landet i alt | B62: =SUM(B49:B61) -> 319171647.9 | C62: =SUM(C49:C61) -> 17331013.93 | D62: =SUM(D49:D61) -> 1080462.21 | E62: =SUM(E49:E61) -> 91534.75 | F62: =IF(D62=0,0,B62/D62) -> 295.4028794 | G62: =IF(E62=0,0,C62/E62) -> 189.3380812 | H62: =IF(D62+E62=0,0,(B62+C62)/(D62+E62)) -> 287.1190569 | I62: 273224475.9 | J62: 12321683 | K62: 273 | L62: 0.1681663839 | M62: 0.05171815722

Sheet MALERE
A2: ="MÅLESTATISTIKK FOR MALERE - 1. HALVÅR "&FORS!$A$14 -> MÅLESTATISTIKK FOR MALERE - 1. HALVÅR 2016
B4: Målesum i kroner | D4: Timer | F4: ="Fortjeneste 1. halvår "&FORS!$A$14-0 -> Fortjeneste 1. halvår 2016 | I4: =" 1. halvår "&FORS!$A$14-1 -> 1. halvår 2015 | L4: Endringer i %
B5: Innmålt m/ | C5: Innmålt m/ | D5: Innmålt m/ | E5: Innmålt m/ | F5: Innmålt m/ | G5: Innmålt m/ | H5: Gjennom- | I5: Innmålt m/ | J5: Innmålt m/ | K5: Gjen.snitt | L5: Innmålt m/ | M5: Gjen.snitt
B6: overskudd | C6: underskudd | D6: overskudd | E6: underskudd | F6: overskudd | G6: underskudd | H6: snitt | I6: overskudd | J6: underskudd | K6: fortjeneste | L6: overskudd | M6: fortjeneste
A7: Agder | F7: =IF(D7=0,0,B7/D7) -> 0 | H7: =IF(D7+E7=0,0,(B7+C7)/(D7+E7)) -> 0 | K7: 0 | L7: =IF(I7=0,0,(B7-I7)/I7) -> 0 | M7: =IF(K7=0,0,(H7-K7)/K7) -> 0
A8: Bergen | B8: 2304272.1 | D8: 10362.75 | F8: =IF(D8=0,0,B8/D8) -> 222.3610625 | G8: =IF(E8=0,0,C8/E8) -> 0 | H8: =IF(D8+E8=0,0,(B8+C8)/(D8+E8)) -> 222.3610625 | I8: 2190258 | K8: 238.26 | L8: =IF(I8=0,0,(B8-I8)/I8) -> 0.05205510036 | M8: =IF(K8=0,0,(H8-K8)/K8) -> -0.06672936095
A9: Glåmdal | F9: 0 | G9: 0 | H9: =IF(D9+E9=0,0,(B9+C9)/(D9+E9)) -> 0 | K9: 0 | L9: 0 | M9: =IF(K9=0,0,(H9-K9)/K9) -> 0
A10: Hamar og Omegn | B10: 1028373 | C10: 230756 | D10: 4018 | E10: 1438 | F10: =IF(D10=0,0,B10/D10) -> 255.9415132 | G10: =IF(E10=0,0,C10/E10) -> 160.4700974 | H10: 230.7787757 | I10: 1131851 | J10: 312564 | K10: 216.07 | L10: -0.09142369446 | M10: 0.06807412255
A11: Nordland | F11: 0 | G11: =IF(E11=0,0,C11/E11) -> 0 | H11: 0 | K11: 0 | L11: 0 | M11: 0
A12: Sandnes | F12: 0 | G12: 0 | H12: 0 | K12: 0 | L12: 0 | M12: 0
A13: Telemark | B13: 391124 | D13: 1379.5 | F13: =IF(D13=0,0,B13/D13) -> 283.5259152 | G13: 0 | H13: 283.5259152 | I13: 184665 | K13: 328.59 | L13: 1.118019116 | M13: -0.1371438109
A14: Tromsø | F14: 0 | G14: 0 | H14: =IF(D14+E14=0,0,(B14+C14)/(D14+E14)) -> 0 | K14: 0 | L14: 0 | M14: =IF(K14=0,0,(H14-K14)/K14) -> 0
A15: Trondheim | B15: 16358897 | C15: 1486845 | D15: 62231.99 | E15: 7674.15 | F15: =IF(D15=0,0,B15/D15) -> 262.8695788 | G15: =IF(E15=0,0,C15/E15) -> 193.7471902 | H15: =IF(D15+E15=0,0,(B15+C15)/(D15+E15)) -> 255.2814674 | I15: 13944578 | J15: 575160 | K15: 252.38 | L15: 0.1731367561 | M15: 0.01149642368
A16: Vestfold | B16: 479063 | D16: 1404 | F16: =IF(D16=0,0,B16/D16) -> 341.212963 | G16: =IF(E16=0,0,C16/E16) -> 0 | H16: =IF(D16+E16=0,0,(B16+C16)/(D16+E16)) -> 341.212963 | I16: 552798 | K16: 334.12 | L16: -0.1333850701 | M16: 0.02122878895
A17: Oslo | B17: 2692486.09 | D17: 9366.5 | F17: 287.4591459 | G17: 0 | H17: 287.4591459 | I17: 2192426 | K17: 268.06 | L17: 0.2280852763 | M17: 0.07236867079
A18: Landet i alt | B18: =SUM(B7:B17) -> 23254215.19 | C18: =SUM(C7:C17) -> 1717601 | D18: =SUM(D7:D17) -> 88762.74 | E18: =SUM(E7:E17) -> 9112.15 | F18: =IF(D18=0,0,B18/D18) -> 261.9817188 | G18: =IF(E18=0,0,C18/E18) -> 188.4956898 | H18: =IF(D18+E18=0,0,(B18+C18)/(D18+E18)) -> 255.1401712 | I18: =SUM(I7:I17) -> 20196576 | J18: =SUM(J7:J17) -> 887724 | K18: 251.59 | L18: 0.1513939388 | M18: 0.01411093919
A21: ="MÅLESTATISTIKK FOR MALERE - 2. HALVÅR "&FORS!$A$14 -> MÅLESTATISTIKK FOR MALERE - 2. HALVÅR 2016
B23: Målesum i kroner | D23: Timer | F23: ="Fortjeneste 2. halvår "&FORS!$A$14-0 -> Fortjeneste 2. halvår 2016 | I23: =" 2. halvår "&FORS!$A$14-1 -> 2. halvår 2015 | L23: Endringer i %
B24: Innmålt m/ | C24: Innmålt m/ | D24: Innmålt m/ | E24: Innmålt m/ | F24: Innmålt m/ | G24: Innmålt m/ | H24: Gjennom- | I24: Innmålt m/ | J24: Innmålt m/ | K24: Gjen.snitt | L24: Innmålt m/ | M24: Gjen.snitt
B25: overskudd | C25: underskudd | D25: overskudd | E25: underskudd | F25: overskudd | G25: underskudd | H25: snitt | I25: overskudd | J25: underskudd | K25: fortjeneste | L25: overskudd | M25: fortjeneste
A26: Agder | F26: =IF(D26=0,0,B26/D26) -> 0 | G26: =IF(E26=0,0,C26/E26) -> 0 | H26: =IF(D26+E26=0,0,(B26+C26)/(D26+E26)) -> 0 | K26: 0 | L26: =IF(I26=0,0,(B26-I26)/I26) -> 0 | M26: =IF(K26=0,0,(H26-K26)/K26) -> 0
A27: Bergen | B27: 3144106.83 | D27: 13316.52 | F27: =IF(D27=0,0,B27/D27) -> 236.1057416 | G27: =IF(E27=0,0,C27/E27) -> 0 | H27: =IF(D27+E27=0,0,(B27+C27)/(D27+E27)) -> 236.1057416 | I27: 2828479 | K27: 222.02 | L27: =IF(I27=0,0,(B27-I27)/I27) -> 0.1115892428 | M27: =IF(K27=0,0,(H27-K27)/K27) -> 0.06344357081
A28: Glåmdal | F28: 0 | G28: 0 | H28: 0 | K28: 0 | L28: 0 | M28: 0
A29: Hamar og Omegn | B29: 1699069 | C29: 38242 | D29: 6396 | E29: 209 | F29: 265.6455597 | G29: =IF(E29=0,0,C29/E29) -> 182.9760766 | H29: 263.0296745 | I29: 2383637 | J29: 272041 | K29: 232.91 | L29: -0.2871947364 | M29: 0.1293189407
A30: Nordland | F30: 0 | G30: 0 | H30: 0 | K30: 0 | L30: 0 | M30: 0
A31: Sandnes | F31: 0 | G31: 0 | H31: 0 | K31: 0 | L31: 0 | M31: 0
A32: Telemark | B32: 161575.4 | D32: 375.5 | F32: 430.294008 | G32: 0 | H32: 430.294008 | I32: 265062 | K32: 275.25 | L32: -0.3904241272 | M32: 0.563284316
A33: Tromsø | F33: 0 | G33: 0 | H33: 0 | K33: 0 | L33: 0 | M33: 0
A34: Trondheim | B34: 23031833 | C34: 2481659 | D34: 85578.8 | E34: 12132.86 | F34: 269.1301233 | G34: 204.5403145 | H34: 261.1100047 | I34: 22479509 | J34: 3033398 | K34: 253.03 | L34: 0.02457010961 | M34: 0.03193299088
A35: Vestfold | B35: 254968 | D35: 806 | F35: =IF(D35=0,0,B35/D35) -> 316.337469 | G35: =IF(E35=0,0,C35/E35) -> 0 | H35: =IF(D35+E35=0,0,(B35+C35)/(D35+E35)) -> 316.337469 | L35: 0 | M35: 0
A36: Oslo* | B36: 5854138 | D36: 20013 | F36: 292.5167641 | G36: 0 | H36: 292.5167641 | I36: 2619437 | K36: 288.83 | L36: 1.234884061 | M36: 0.01276447773
A37: Landet i alt | B37: =SUM(B26:B36) -> 34145690.23 | C37: =SUM(C26:C36) -> 2519901 | D37: =SUM(D26:D36) -> 126485.82 | E37: =SUM(E26:E36) -> 12341.86 | F37: =IF(D37=0,0,B37/D37) -> 269.9566657 | G37: =IF(E37=0,0,C37/E37) -> 204.1751405 | H37: =IF(D37+E37=0,0,(B37+C37)/(D37+E37)) -> 264.1086506 | I37: =SUM(I26:I36) -> 30576124 | J37: =SUM(J26:J36) -> 3305439 | K37: 250.97 | L37: 0.1167435817 | M37: 0.05235147864
A38: * inklusive Buskerud
A40: ="MÅLESTATISTIKK FOR MALERE - GJENNOMSNITT HELE ÅRET "&FORS!$A$14 -> MÅLESTATISTIKK FOR MALERE - GJENNOMSNITT HELE ÅRET 2016
B42: Målesum i kroner | D42: Timer | F42: ="Fortjeneste hele "&FORS!$A$14-0 -> Fortjeneste hele 2016 | I42: =" Hele året "&FORS!$A$14-1 -> Hele året 2015 | L42: Endringer i %
B43: Innmålt m/ | C43: Innmålt m/ | D43: Innmålt m/ | E43: Innmålt m/ | F43: Innmålt m/ | G43: Innmålt m/ | H43: Gjennom- | I43: Innmålt m/ | J43: Innmålt m/ | K43: Gjen.snitt | L43: Innmålt m/ | M43: Gjen.snitt
B44: overskudd | C44: underskudd | D44: overskudd | E44: underskudd | F44: overskudd | G44: underskudd | H44: snitt | I44: overskudd | J44: underskudd | K44: fortjeneste | L44: overskudd | M44: fortjeneste
A45: Agder | F45: =IF(D45=0,0,B45/D45) -> 0 | G45: =IF(E45=0,0,C45/E45) -> 0 | H45: =IF(D45+E45=0,0,(B45+C45)/(D45+E45)) -> 0 | I45: =I7+I26 -> 0 | J45: =J7+J26 -> 0 | K45: 0 | L45: =IF(I45=0,0,(B45-I45)/I45) -> 0 | M45: =IF(K45=0,0,(H45-K45)/K45) -> 0
A46: Bergen | B46: =B8+B27 -> 5448378.93 | D46: =D8+D27 -> 23679.27 | F46: =IF(D46=0,0,B46/D46) -> 230.0906628 | G46: =IF(E46=0,0,C46/E46) -> 0 | H46: =IF(D46+E46=0,0,(B46+C46)/(D46+E46)) -> 230.0906628 | I46: =I8+I27 -> 5018737 | J46: 0 | K46: 229 | L46: =IF(I46=0,0,(B46-I46)/I46) -> 0.08560758015 | M46: =IF(K46=0,0,(H46-K46)/K46) -> 0.00476271985
F47: 0 | G47: 0 | H47: 0 | I47: 0 | J47: 0 | K47: 0 | L47: 0 | M47: 0
A48: Hamar og Omegn | B48: =B10+B29 -> 2727442 | C48: =C10+C29 -> 268998 | D48: =D10+D29 -> 10414 | E48: =E10+E29 -> 1647 | F48: 261.9014788 | G48: 163.3260474 | H48: 248.4404278 | I48: 3515488 | J48: 584605 | K48: 227 | L48: -0.2241640421 | M48: 0.0944512239
A49: Nordland | F49: 0 | G49: 0 | H49: 0 | I49: 0 | J49: 0 | K49: 0 | L49: 0 | M49: 0
A50: Sandnes | F50: 0 | G50: 0 | H50: 0 | I50: 0 | J50: 0 | K50: 0 | L50: 0 | M50: 0
A51: Telemark | B51: =B13+B32 -> 552699.4 | D51: =D13+D32 -> 1755 | F51: 314.928433 | G51: 0 | H51: 314.928433 | I51: 449727 | J51: 0 | K51: 295 | L51: 0.2289664619 | M51: 0.06755401033
F52: 0 | G52: 0 | H52: 0 | I52: 0 | J52: 0 | K52: 0 | L52: 0 | M52: 0
A53: Trondheim | B53: =B15+B34 -> 39390730 | C53: =C15+C34 -> 3968504 | D53: =D15+D34 -> 147810.79 | E53: =E15+E34 -> 19807.01 | F53: 266.4942796 | G53: 200.3585599 | H53: 258.6791737 | I53: 36424087 | J53: 3608558 | K53: 253 | L53: 0.08144728514 | M53: 0.02244732684
A54: Vestfold | B54: =B16+B35 -> 734031 | D54: =D16+D35 -> 2210 | F54: 332.140724 | G54: 0 | H54: 332.140724 | I54: 552798 | J54: 0 | K54: 334 | L54: 0.3278466999 | M54: -0.005566694665
A55: Oslo | B55: =B17+B36 -> 8546624.09 | D55: =D17+D36 -> 29379.5 | F55: =IF(D55=0,0,B55/D55) -> 290.9043411 | G55: 0 | H55: 290.9043411 | I55: 4811863 | J55: 0 | K55: 279 | L55: 0.7761569874 | M55: 0.04266788933
A56: Landet i alt | B56: =SUM(B45:B55) -> 57399905.42 | C56: =SUM(C45:C55) -> 4237502 | D56: =SUM(D45:D55) -> 215248.56 | E56: =SUM(E45:E55) -> 21454.01 | F56: =IF(D56=0,0,B56/D56) -> 266.6680113 | G56: =IF(E56=0,0,C56/E56) -> 197.515616 | H56: =IF(D56+E56=0,0,(B56+C56)/(D56+E56)) -> 260.4002458 | I56: 50772700 | J56: 4193163 | K56: 251 | L56: 0.130526945 | M56: 0.03745117866

Sheet RØRLEGGERE
A2: ="MÅLESTATISTIKK FOR RØRLEGGERE - 1. HALVÅR "&FORS!$A$14 -> MÅLESTATISTIKK FOR RØRLEGGERE - 1. HALVÅR 2016
B4: Målesum i kroner | D4: Timer | F4: ="Fortjeneste 1. halvår "&FORS!$A$14-0 -> Fortjeneste 1. halvår 2016 | I4: =" 1. halvår "&FORS!$A$14-1 -> 1. halvår 2015 | L4: Endringer i %
B5: Innmålt m/ | C5: Innmålt m/ | D5: Innmålt m/ | E5: Innmålt m/ | F5: Innmålt m/ | G5: Innmålt m/ | H5: Gjennom- | I5: Innmålt m/ | J5: Innmålt m/ | K5: Gjen.snitt | L5: Innmålt m/ | M5: Gjen.snitt
B6: overskudd | C6: underskudd | D6: overskudd | E6: underskudd | F6: overskudd | G6: underskudd | H6: snitt | I6: overskudd | J6: underskudd | K6: fortjeneste | L6: overskudd | M6: fortjeneste
A7: Bergen | F7: =IF(D7=0,0,B7/D7) -> 0 | G7: 0 | H7: =IF(D7+E7=0,0,(B7+C7)/(D7+E7)) -> 0 | K7: 0 | L7: =IF(I7=0,0,(B7-I7)/I7) -> 0 | M7: =IF(K7=0,0,(H7-K7)/K7) -> 0
A8: Nordland | B8: 2541354 | C8: 1693791 | D8: 10750 | E8: 8251 | F8: 236.4050233 | G8: 205.2831172 | H8: 222.8906373 | K8: 0 | L8: =IF(I8=0,0,(B8-I8)/I8) -> 0 | M8: =IF(K8=0,0,(H8-K8)/K8) -> 0
A9: Stavanger | F9: 0 | G9: 0 | H9: 0 | K9: 0 | L9: 0 | M9: 0
A10: Tromsø | F10: 0 | G10: 0 | H10: 0 | K10: 0 | L10: 0 | M10: 0
A11: Trondheim | B11: 6449409.51 | C11: 1587715.82 | D11: 21112.14632 | E11: 9704.29425 | F11: 305.4833655 | G11: 163.6096123 | H11: 260.8064131 | I11: 12502745 | J11: 1684944 | K11: 246.93 | L11: -0.4841605176 | M11: 0.05619573609
A12: Oslo | B12: 17445059 | C12: 949206 | D12: 66227.5 | E12: 5076.5 | F12: 263.4111057 | G12: 186.9803999 | H12: 257.969609 | L12: 0 | M12: 0
A13: Landet i alt | B13: =SUM(B7:B12) -> 26435822.51 | C13: =SUM(C7:C12) -> 4230712.82 | D13: =SUM(D7:D12) -> 98089.64632 | E13: =SUM(E7:E12) -> 23031.79425 | F13: 269.5067574 | G13: 183.69011 | H13: 253.1883305 | I13: =SUM(I7:I12) -> 12502745 | J13: 1684944 | K13: 246.93 | L13: =IF(I13=0,0,(B13-I13)/I13) -> 1.114401478 | M13: =IF(K13=0,0,(H13-K13)/K13) -> 0.02534455326
A16: ="MÅLESTATISTIKK FOR RØRLEGGERE - 2. HALVÅR "&FORS!$A$14 -> MÅLESTATISTIKK FOR RØRLEGGERE - 2. HALVÅR 2016
B18: Målesum i kroner | D18: Timer | F18: ="Fortjeneste 2. halvår "&FORS!$A$14-0 -> Fortjeneste 2. halvår 2016 | I18: =" 2. halvår "&FORS!$A$14-1 -> 2. halvår 2015 | L18: Endringer i %
B19: Innmålt m/ | C19: Innmålt m/ | D19: Innmålt m/ | E19: Innmålt m/ | F19: Innmålt m/ | G19: Innmålt m/ | H19: Gjennom- | I19: Innmålt m/ | J19: Innmålt m/ | K19: Gjen.snitt | L19: Innmålt m/ | M19: Gjen.snitt
B20: overskudd | C20: underskudd | D20: overskudd | E20: underskudd | F20: overskudd | G20: underskudd | H20: snitt | I20: overskudd | J20: underskudd | K20: fortjeneste | L20: overskudd | M20: fortjeneste
A21: Bergen | F21: =IF(D21=0,0,B21/D21) -> 0 | G21: 0 | H21: =IF(D21+E21=0,0,(B21+C21)/(D21+E21)) -> 0 | L21: =IF(I21=0,0,(B21-I21)/I21) -> 0 | M21: =IF(K21=0,0,(H21-K21)/K21) -> 0
A22: Nordland | B22: 845073 | D22: 3016 | F22: =IF(D22=0,0,B22/D22) -> 280.196618 | G22: =IF(E22=0,0,C22/E22) -> 0 | H22: =IF(D22+E22=0,0,(B22+C22)/(D22+E22)) -> 280.196618 | L22: =IF(I22=0,0,(B22-I22)/I22) -> 0 | M22: =IF(K22=0,0,(H22-K22)/K22) -> 0
A23: Stavanger | F23: 0 | G23: 0 | H23: 0 | K23: 0 | L23: 0 | M23: 0
A24: Tromsø | F24: 0 | G24: 0 | H24: 0 | K24: 0 | L24: 0 | M24: 0
A25: Trondheim | B25: 17846326.47 | C25: 4299735.16 | D25: 61892.14 | E25: 23764.7 | F25: 288.3456037 | G25: 180.9294946 | H25: 258.5439952 | I25: 13370611 | J25: 2437110 | K25: 234.93 | L25: 0.334742778 | M25: 0.1005150266
A26: Oslo | B26: 21060290 | C26: 4133316 | D26: 72867.5 | E26: 22998 | F26: 289.0217175 | G26: 179.7250196 | H26: 262.8015918 | I26: 21881534 | J26: 4353473 | K26: 248.75 | L26: -0.03753137234 | M26: 0.05648881131
A27: Landet i alt | B27: =SUM(B21:B26) -> 39751689.47 | C27: =SUM(C21:C26) -> 8433051.16 | D27: =SUM(D21:D26) -> 137775.64 | E27: =SUM(E21:E26) -> 46762.7 | F27: 288.5248036 | G27: 180.3371311 | H27: 261.109646 | I27: =SUM(I25:I26) -> 35252145 | J27: 6790583 | K27: 243.37 | L27: 0.1276388847 | M27: 0.0728916711
A30: ="MÅLESTATISTIKK FOR RØRLEGGERE - GJENNOMSNITT HELE ÅRET "&FORS!$A$14 -> MÅLESTATISTIKK FOR RØRLEGGERE - GJENNOMSNITT HELE ÅRET 2016
B32: Målesum i kroner | D32: Timer | F32: ="Fortjeneste hele "&FORS!$A$14-0 -> Fortjeneste hele 2016 | I32: =" Hele året "&FORS!$A$14-1 -> Hele året 2015 | L32: Endringer i %
B33: Innmålt m/ | C33: Innmålt m/ | D33: Innmålt m/ | E33: Innmålt m/ | F33: Innmålt m/ | G33: Innmålt m/ | H33: Gjennom- | I33: Innmålt m/ | J33: Innmålt m/ | K33: Gjen.snitt | L33: Innmålt m/ | M33: Gjen.snitt
B34: overskudd | C34: underskudd | D34: overskudd | E34: underskudd | F34: overskudd | G34: underskudd | H34: snitt | I34: overskudd | J34: underskudd | K34: fortjeneste | L34: overskudd | M34: fortjeneste
A35: Bergen | F35: =IF(D35=0,0,B35/D35) -> 0 | G35: 0 | H35: =IF(D35+E35=0,0,(B35+C35)/(D35+E35)) -> 0 | I35: =I7+I21 -> 0 | J35: =J7+J21 -> 0 | L35: =IF(I35=0,0,(B35-I35)/I35) -> 0 | M35: =IF(K35=0,0,(H35-K35)/K35) -> 0
A36: Nordland | B36: =B8+B22 -> 3386427 | C36: =C8+C22 -> 1693791 | D36: =D8+D22 -> 13766 | E36: =E8+E22 -> 8251 | F36: =IF(D36=0,0,B36/D36) -> 245.9993462 | G36: =IF(E36=0,0,C36/E36) -> 205.2831172 | H36: =IF(D36+E36=0,0,(B36+C36)/(D36+E36)) -> 230.7407004 | I36: =I8+I22 -> 0 | J36: 0 | L36: =IF(I36=0,0,(B36-I36)/I36) -> 0 | M36: =IF(K36=0,0,(H36-K36)/K36) -> 0
A37: Stavanger | F37: 0 | G37: 0 | H37: 0 | I37: 0 | J37: 0 | K37: 0 | L37: 0 | M37: 0
A38: Tromsø | F38: 0 | G38: 0 | H38: 0 | I38: 0 | J38: 0 | K38: 0 | L38: 0 | M38: 0
A39: Trondheim | B39: =B11+B25 -> 24295735.98 | C39: 5887450.98 | D39: 83004.28632 | E39: 33468.99425 | F39: 292.7045946 | G39: 175.9076157 | H39: 259.1425846 | I39: 25873356 | J39: 4122054 | K39: 240.46 | L39: -0.06097469613 | M39: 0.07769518659
A40: Oslo | B40: 38505349 | C40: 5082522 | D40: 139095 | E40: 28074.5 | F40: 276.8277005 | G40: 181.0369552 | H40: 260.7405717 | I40: 21881534 | J40: 4353473 | K40: 248.75 | L40: 0.7597189027 | M40: 0.0482033033
A41: Landet i alt | B41: =SUM(B35:B40) -> 66187511.98 | C41: =SUM(C35:C40) -> 12663763.98 | D41: =SUM(D35:D40) -> 235865.2863 | E41: =SUM(E35:E40) -> 69794.49425 | F41: 280.6157405 | G41: 181.4435955 | H41: 257.9707275 | I41: 47754890 | J41: 8475527 | K41: 244.25 | L41: 0.385983969 | M41: 0.05617493345

Sheet TAKTEKKERE
A2: ="MÅLESTATISTIKK FOR TAKTEKKERE - 1. HALVÅR "&FORS!$A$14 -> MÅLESTATISTIKK FOR TAKTEKKERE - 1. HALVÅR 2016
B4: Målesum i kroner | D4: Timer | F4: ="Fortjeneste 1. halvår "&FORS!$A$14-0 -> Fortjeneste 1. halvår 2016 | I4: =" 1. halvår "&FORS!$A$14-1 -> 1. halvår 2015 | L4: Endringer i %
B5: Innmålt m/ | C5: Innmålt m/ | D5: Innmålt m/ | E5: Innmålt m/ | F5: Innmålt m/ | G5: Innmålt m/ | H5: Gjennom- | I5: Innmålt m/ | J5: Innmålt m/ | K5: Gjen.snitt | L5: Innmålt m/ | M5: Gjen.snitt
B6: overskudd | C6: underskudd | D6: overskudd | E6: underskudd | F6: overskudd | G6: underskudd | H6: snitt | I6: overskudd | J6: underskudd | K6: fortjeneste | L6: overskudd | M6: fortjeneste
A7: Agder | B7: 10621 | C7: 77406 | D7: 35.5 | E7: 427 | F7: =IF(D7=0,0,B7/D7) -> 299.1830986 | G7: =IF(E7=0,0,C7/E7) -> 181.2786885 | H7: =IF(D7+E7=0,0,(B7+C7)/(D7+E7)) -> 190.3286486 | I7: 360266 | K7: 321.09 | L7: =IF(I7=0,0,(B7-I7)/I7) -> -0.9705190054 | M7: =IF(K7=0,0,(H7-K7)/K7) -> -0.4072420547
A8: Haugesund | F8: =IF(D8=0,0,B8/D8) -> 0 | G8: =IF(E8=0,0,C8/E8) -> 0 | H8: =IF(D8+E8=0,0,(B8+C8)/(D8+E8)) -> 0 | K8: 0 | L8: =IF(I8=0,0,(B8-I8)/I8) -> 0 | M8: =IF(K8=0,0,(H8-K8)/K8) -> 0
A9: Glåmdal | F9: 0 | G9: 0 | H9: 0 | K9: 0 | L9: 0 | M9: 0
A10: Hamar og Omegn | B10: 1282968 | D10: 3912 | F10: 327.9570552 | G10: 0 | H10: 327.9570552 | I10: 856720 | J10: 123643 | K10: 268.81 | L10: 0.4975347838 | M10: 0.2200329423
A11: Bergen | B11: 86712.66 | D11: 299.9 | F11: 289.1385795 | G11: 0 | H11: 289.1385795 | I11: 689244 | K11: 308.84 | L11: -0.8741916361 | M11: -0.0637916736
A12: Nordland | F12: =IF(D12=0,0,B12/D12) -> 0 | G12: =IF(E12=0,0,C12/E12) -> 0 | H12: =IF(D12+E12=0,0,(B12+C12)/(D12+E12)) -> 0 | L12: =IF(I12=0,0,(B12-I12)/I12) -> 0 | M12: =IF(K12=0,0,(H12-K12)/K12) -> 0
A13: Stavanger | B13: 3966062 | C13: 95510 | D13: 12372 | E13: 559 | F13: =IF(D13=0,0,B13/D13) -> 320.5675719 | G13: 170.8586762 | H13: 314.0957389 | I13: 5278154 | J13: 204969 | K13: 265.58 | L13: -0.2485891848 | M13: 0.1826784356
A14: Telemark | B14: 1266123.93 | D14: 3779 | F14: 335.0420561 | G14: 0 | H14: 335.0420561 | I14: 1034676 | K14: 351.66 | L14: 0.2236912135 | M14: -0.04725571262
A15: Trondheim | B15: 3737182 | C15: 508376 | D15: 12649 | E15: 3157 | F15: 295.4527631 | G15: 161.0313589 | H15: 268.6042009 | I15: 4620371 | J15: 590487 | K15: 297.42 | L15: -0.1911511002 | M15: -0.09688588213
A16: Vestfold | F16: =IF(D16=0,0,B16/D16) -> 0 | G16: =IF(E16=0,0,C16/E16) -> 0 | H16: =IF(D16+E16=0,0,(B16+C16)/(D16+E16)) -> 0 | I16: 169042 | K16: 248.66 | L16: -1 | M16: -1
A17: Oslo | B17: 3403810.68 | C17: 467725.22 | D17: 10648.5 | E17: 2656.5 | F17: 319.651658 | G17: 176.0682176 | H17: 290.9835325 | I17: 4792814 | J17: 288977 | K17: 319.58 | L17: -0.2898095607 | M17: -0.08948140526
A18: Landet i alt | B18: =SUM(B7:B17) -> 13753480.27 | C18: =SUM(C7:C17) -> 1149017.22 | D18: =SUM(D7:D17) -> 43695.9 | E18: =SUM(E7:E17) -> 6799.5 | F18: =IF(D18=0,0,B18/D18) -> 314.7544797 | G18: =IF(E18=0,0,C18/E18) -> 168.985546 | H18: =IF(D18+E18=0,0,(B18+C18)/(D18+E18)) -> 295.1258429 | I18: =SUM(I7:I17) -> 17801287 | J18: =SUM(J7:J17) -> 1208076 | K18: 293.85 | L18: -0.2273884315 | M18: 0.004341817077
A21: ="MÅLESTATISTIKK FOR TAKTEKKERE - 2. HALVÅR "&FORS!$A$14 -> MÅLESTATISTIKK FOR TAKTEKKERE - 2. HALVÅR 2016
B23: Målesum i kroner | D23: Timer | F23: ="Fortjeneste 2. halvår "&FORS!$A$14-0 -> Fortjeneste 2. halvår 2016 | I23: =" 2. halvår "&FORS!$A$14-1 -> 2. halvår 2015 | L23: Endringer i %
B24: Innmålt m/ | C24: Innmålt m/ | D24: Innmålt m/ | E24: Innmålt m/ | F24: Innmålt m/ | G24: Innmålt m/ | H24: Gjennom- | I24: Innmålt m/ | J24: Innmålt m/ | K24: Gjen.snitt | L24: Innmålt m/ | M24: Gjen.snitt
B25: overskudd | C25: underskudd | D25: overskudd | E25: underskudd | F25: overskudd | G25: underskudd | H25: snitt | I25: overskudd | J25: underskudd | K25: fortjeneste | L25: overskudd | M25: fortjeneste
A26: Agder | B26: 163682 | D26: 595 | F26: =IF(D26=0,0,B26/D26) -> 275.0957983 | G26: =IF(E26=0,0,C26/E26) -> 0 | H26: =IF(D26+E26=0,0,(B26+C26)/(D26+E26)) -> 275.0957983 | I26: 201527 | K26: 348.06 | L26: =IF(I26=0,0,(B26-I26)/I26) -> -0.1877912141 | M26: =IF(K26=0,0,(H26-K26)/K26) -> -0.2096311029
A27: Haugesund | F27: =IF(D27=0,0,B27/D27) -> 0 | G27: =IF(E27=0,0,C27/E27) -> 0 | H27: =IF(D27+E27=0,0,(B27+C27)/(D27+E27)) -> 0 | K27: 0 | L27: =IF(I27=0,0,(B27-I27)/I27) -> 0 | M27: =IF(K27=0,0,(H27-K27)/K27) -> 0
A28: Glåmdal | F28: 0 | G28: 0 | H28: 0 | K28: 0 | L28: 0 | M28: 0
A29: Hamar og Omegn | B29: 1250367 | D29: 3801 | F29: 328.9573796 | G29: 0 | H29: 328.9573796 | I29: 1264367 | J29: 113701 | K29: 306.51 | L29: -0.01107273442 | M29: 0.07323539081
A30: Bergen | F30: =IF(D30=0,0,B30/D30) -> 0 | G30: =IF(E30=0,0,C30/E30) -> 0 | H30: =IF(D30+E30=0,0,(B30+C30)/(D30+E30)) -> 0 | I30: 60049 | K30: 341.19 | L30: -1 | M30: -1
A31: Nordland | F31: =IF(D31=0,0,B31/D31) -> 0 | G31: =IF(E31=0,0,C31/E31) -> 0 | H31: =IF(D31+E31=0,0,(B31+C31)/(D31+E31)) -> 0 | K31: 0 | L31: 0 | M31: 0
A32: Stavanger | B32: 3372888 | C32: 130812 | D32: 10946 | E32: 677 | F32: 308.1388635 | G32: 193.2230428 | H32: 301.44541 | I32: 4611715 | J32: 262724 | K32: 322.26 | L32: -0.2686260968 | M32: -0.06458943101
A33: Telemark | B33: 1528157.86 | D33: 4523.7 | F33: 337.811495 | G33: 0 | H33: 337.811495 | I33: 915167 | K33: 336.9 | L33: 0.6698131161 | M33: 0.002705535812
A34: Trondheim | B34: 3900995 | C34: 742859 | D34: 12285 | E34: 4665 | F34: =IF(D34=0,0,B34/D34) -> 317.5413105 | G34: 159.2409432 | H34: =IF(D34+E34=0,0,(B34+C34)/(D34+E34)) -> 273.9736873 | I34: 5479666 | J34: 375200 | K34: 308.09 | L34: -0.2880962088 | M34: -0.1107348914
A35: Vestfold | F35: =IF(D35=0,0,B35/D35) -> 0 | G35: 0 | H35: =IF(D35+E35=0,0,(B35+C35)/(D35+E35)) -> 0 | L35: 0 | M35: 0
A36: Oslo | B36: 2797589.4 | C36: 300961.09 | D36: 8295.7 | E36: 1685.5 | F36: =IF(D36=0,0,B36/D36) -> 337.2336753 | G36: 178.558938 | H36: 310.4386737 | I36: 3681003.65 | J36: 570504.05 | K36: 265.83 | L36: -0.2399927666 | M36: 0.1678090272
A37: Landet i alt | B37: =SUM(B26:B36) -> 13013679.26 | C37: =SUM(C26:C36) -> 1174632.09 | D37: =SUM(D26:D36) -> 40446.4 | E37: =SUM(E26:E36) -> 7027.5 | F37: =IF(D37=0,0,B37/D37) -> 321.7512377 | G37: =IF(E37=0,0,C37/E37) -> 167.1479317 | H37: =IF(D37+E37=0,0,(B37+C37)/(D37+E37)) -> 298.8655103 | I37: =SUM(I26:I36) -> 16213494.65 | J37: =SUM(J26:J36) -> 1322129.05 | K37: 301.87 | L37: -0.1973550711 | M37: -0.009952925723
A40: ="MÅLESTATISTIKK FOR TAKTEKKERE - GJENNOMSNITT HELE ÅRET "&FORS!$A$14 -> MÅLESTATISTIKK FOR TAKTEKKERE - GJENNOMSNITT HELE ÅRET 2016
B42: Målesum i kroner | D42: Timer | F42: ="Fortjeneste hele "&FORS!$A$14-0 -> Fortjeneste hele 2016 | I42: =" Hele året "&FORS!$A$14-1 -> Hele året 2015 | L42: Endringer i %
B43: Innmålt m/ | C43: Innmålt m/ | D43: Innmålt m/ | E43: Innmålt m/ | F43: Innmålt m/ | G43: Innmålt m/ | H43: Gjennom- | I43: Innmålt m/ | J43: Innmålt m/ | K43: Gjen.snitt | L43: Innmålt m/ | M43: Gjen.snitt
B44: overskudd | C44: underskudd | D44: overskudd | E44: underskudd | F44: overskudd | G44: underskudd | H44: snitt | I44: overskudd | J44: underskudd | K44: fortjeneste | L44: overskudd | M44: fortjeneste
A45: Agder | B45: =B7+B26 -> 174303 | C45: =C7+C26 -> 77406 | D45: =D7+D26 -> 630.5 | E45: =E7+E26 -> 427 | F45: =IF(D45=0,0,B45/D45) -> 276.4520222 | G45: =IF(E45=0,0,C45/E45) -> 181.2786885 | H45: =IF(D45+E45=0,0,(B45+C45)/(D45+E45)) -> 238.022695 | I45: =I7+I26 -> 561793 | J45: =J7+J26 -> 0 | K45: 330 | L45: =IF(I45=0,0,(B45-I45)/I45) -> -0.6897380352 | M45: =IF(K45=0,0,(H45-K45)/K45) -> -0.278719106
A46: Haugesund | F46: =IF(D46=0,0,B46/D46) -> 0 | G46: =IF(E46=0,0,C46/E46) -> 0 | H46: =IF(D46+E46=0,0,(B46+C46)/(D46+E46)) -> 0 | I46: =I8+I27 -> 0 | J46: 0 | K46: 0 | L46: =IF(I46=0,0,(B46-I46)/I46) -> 0 | M46: =IF(K46=0,0,(H46-K46)/K46) -> 0
A47: Glåmdal | F47: 0 | G47: 0 | H47: 0 | I47: 0 | J47: 0 | K47: 0 | L47: 0 | M47: 0
A48: Hamar og Omegn | B48: =B10+B29 -> 2533335 | D48: =D10+D29 -> 7713 | F48: 328.4500194 | G48: 0 | H48: 328.4500194 | I48: 2121087 | J48: 237344 | K48: 290 | L48: 0.19435695 | M48: 0.132586274
A49: Bergen | F49: 0 | G49: 0 | H49: 0 | I49: 749293 | J49: 0 | K49: 311 | L49: -1 | M49: -1
A50: Nordland | F50: =IF(D50=0,0,B50/D50) -> 0 | G50: =IF(E50=0,0,C50/E50) -> 0 | H50: =IF(D50+E50=0,0,(B50+C50)/(D50+E50)) -> 0 | I50: 0 | J50: 0 | L50: 0 | M50: 0
A51: Stavanger | B51: =B13+B32 -> 7338950 | C51: =C13+C32 -> 226322 | D51: =D13+D32 -> 23318 | E51: =E13+E32 -> 1236 | F51: 314.7332533 | G51: 183.1084142 | H51: 308.1075181 | I51: 9889869 | J51: 467693 | K51: 290 | L51: -0.2579325368 | M51: 0.06243971767
A52: Telemark | B52: =B14+B33 -> 2794281.79 | D52: =D14+D33 -> 8302.7 | F52: 336.5509762 | G52: 0 | H52: 336.5509762 | I52: 1949843 | J52: 0 | K52: 345 | L52: 0.4330804019 | M52: -0.02448992409
A53: Trondheim | B53: =B15+B34 -> 7638177 | C53: =C15+C34 -> 1251235 | D53: =D15+D34 -> 24934 | E53: =E15+E34 -> 7822 | F53: 306.3358065 | G53: 159.9635643 | H53: 271.3827085 | I53: 10100037 | J53: 965687 | K53: 303 | L53: -0.2437476219 | M53: -0.1043474967
A54: Vestfold | F54: =IF(D54=0,0,B54/D54) -> 0 | G54: =IF(E54=0,0,C54/E54) -> 0 | H54: =IF(D54+E54=0,0,(B54+C54)/(D54+E54)) -> 0 | I54: 169042 | J54: 0 | K54: 249 | L54: -1 | M54: -1
A55: Oslo | B55: =B17+B36 -> 6201400.08 | C55: =C17+C36 -> 768686.31 | D55: =D17+D36 -> 18944.2 | E55: =E17+E36 -> 4342 | F55: =IF(D55=0,0,B55/D55) -> 327.3508557 | G55: 177.0350783 | H55: 299.3226198 | I55: 8473817.65 | J55: 859481.05 | K55: 293 | L55: -0.268169279 | M55: 0.02157890729
A56: Landet i alt | B56: =SUM(B45:B55) -> 26680446.87 | C56: =SUM(C45:C55) -> 2323649.31 | D56: =SUM(D45:D55) -> 83842.4 | E56: =SUM(E45:E55) -> 13827 | F56: =IF(D56=0,0,B56/D56) -> 318.2214115 | G56: =IF(E56=0,0,C56/E56) -> 168.0515882 | H56: =IF(D56+E56=0,0,(B56+C56)/(D56+E56)) -> 296.9619572 | I56: 34014781.65 | J56: =J18+J37 -> 2530205.05 | K56: 298 | L56: -0.2156219862 | M56: -0.003483365188

Sheet MURERE
A2: ="MÅLESTATISTIKK FOR MURERE - 1. HALVÅR "&FORS!$A$14 -> MÅLESTATISTIKK FOR MURERE - 1. HALVÅR 2016
B4: Målesum i kroner | D4: Timer | F4: ="Fortjeneste 1. halvår "&FORS!$A$14-0 -> Fortjeneste 1. halvår 2016 | I4: =" 1. halvår "&FORS!$A$14-1 -> 1. halvår 2015 | L4: Endringer i %
B5: Innmålt m/ | C5: Innmålt m/ | D5: Innmålt m/ | E5: Innmålt m/ | F5: Innmålt m/ | G5: Innmålt m/ | H5: Gjennom- | I5: Innmålt m/ | J5: Innmålt m/ | K5: Gjen.snitt | L5: Innmålt m/ | M5: Gjen.snitt
B6: overskudd | C6: underskudd | D6: overskudd | E6: underskudd | F6: overskudd | G6: underskudd | H6: snitt | I6: overskudd | J6: underskudd | K6: fortjeneste | L6: overskudd | M6: fortjeneste
A7: Agder | F7: =IF(D7=0,0,B7/D7) -> 0 | G7: =IF(E7=0,0,C7/E7) -> 0 | H7: =IF(D7+E7=0,0,(B7+C7)/(D7+E7)) -> 0 | K7: 0 | L7: =IF(I7=0,0,(B7-I7)/I7) -> 0 | M7: =IF(K7=0,0,(H7-K7)/K7) -> 0
A8: Bergen | B8: 79198.12 | D8: 335.35 | F8: =IF(D8=0,0,B8/D8) -> 236.1655584 | G8: =IF(E8=0,0,C8/E8) -> 0 | H8: =IF(D8+E8=0,0,(B8+C8)/(D8+E8)) -> 236.1655584 | I8: 930717 | K8: 260.03 | L8: =IF(I8=0,0,(B8-I8)/I8) -> -0.9149063357 | M8: =IF(K8=0,0,(H8-K8)/K8) -> -0.09177572445
A9: Glåmdal | F9: 0 | G9: 0 | H9: 0 | K9: 0 | L9: 0 | M9: 0
A10: Hamar og Omegn | B10: 96166.71 | D10: 226.9 | F10: 423.8286029 | G10: 0 | H10: =IF(D10+E10=0,0,(B10+C10)/(D10+E10)) -> 423.8286029 | I10: 107726 | K10: 397.66 | L10: -0.1073026939 | M10: 0.06580647515
A11: Nordland | F11: 0 | G11: 0 | H11: 0 | K11: 0 | L11: 0 | M11: 0
A12: Stavanger | B12: 462776 | D12: 1492.5 | F12: =IF(D12=0,0,B12/D12) -> 310.0676717 | G12: 0 | H12: 310.0676717 | I12: 585212 | K12: 303.61 | L12: -0.2092164891 | M12: 0.02126962778
A13: Tromsø | F13: 0 | H13: 0 | K13: 0 | L13: 0 | M13: 0
A14: Telemark | F14: 0 | G14: 0 | H14: 0 | K14: 0 | L14: 0 | M14: 0
A15: Trondheim | B15: 2921217 | C15: 659594 | D15: 10213 | E15: 2917 | F15: =IF(D15=0,0,B15/D15) -> 286.0292764 | G15: =IF(E15=0,0,C15/E15) -> 226.1206719 | H15: =IF(D15+E15=0,0,(B15+C15)/(D15+E15)) -> 272.719802 | I15: 2536550 | J15: 222947 | K15: 253.96 | L15: 0.1516496817 | M15: 0.07386912104
A16: Vestfold | F16: 0 | G16: 0 | H16: 0 | K16: 0 | L16: 0 | M16: 0
A17: Oslo | B17: 10951895 | C17: 2009263 | D17: 40238 | E17: 9929 | F17: 272.1779164 | G17: 202.3630779 | H17: 258.3602368 | I17: 7683995 | K17: 282.76 | L17: 0.4252865859 | M17: -0.0862914245
A18: Østfold | B18: 2523252.7 | D18: 7508.5 | F18: 336.0528335 | G18: 0 | H18: 336.0528335 | I18: 2355972 | K18: 274.73 | L18: 0.07100283874 | M18: 0.2232112745
A19: Landet i alt | B19: =SUM(B7:B18) -> 17034505.53 | C19: =SUM(C7:C18) -> 2668857 | D19: =SUM(D7:D18) -> 60014.25 | E19: =SUM(E7:E18) -> 12846 | F19: =IF(D19=0,0,B19/D19) -> 283.8410133 | G19: =IF(E19=0,0,C19/E19) -> 207.7578234 | H19: =IF(D19+E19=0,0,(B19+C19)/(D19+E19)) -> 270.4267763 | I19: =SUM(I8:I18) -> 14200172 | J19: =SUM(J8:J18) -> 222947 | K19: 275.28 | L19: =IF(I19=0,0,(B19-I19)/I19) -> 0.1995985351 | M19: =IF(K19=0,0,(H19-K19)/K19) -> -0.01763013539
A22: ="MÅLESTATISTIKK FOR MURERE - 2. HALVÅR "&FORS!$A$14 -> MÅLESTATISTIKK FOR MURERE - 2. HALVÅR 2016
B24: Målesum i kroner | D24: Timer | F24: ="Fortjeneste 2. halvår "&FORS!$A$14-0 -> Fortjeneste 2. halvår 2016 | I24: =" 2. halvår "&FORS!$A$14-1 -> 2. halvår 2015 | L24: Endringer i %
B25: Innmålt m/ | C25: Innmålt m/ | D25: Innmålt m/ | E25: Innmålt m/ | F25: Innmålt m/ | G25: Innmålt m/ | H25: Gjennom- | I25: Innmålt m/ | J25: Innmålt m/ | K25: Gjen.snitt | L25: Innmålt m/ | M25: Gjen.snitt
B26: overskudd | C26: underskudd | D26: overskudd | E26: underskudd | F26: overskudd | G26: underskudd | H26: snitt | I26: overskudd | J26: underskudd | K26: fortjeneste | L26: overskudd | M26: fortjeneste
A27: Agder | F27: =IF(D27=0,0,B27/D27) -> 0 | G27: =IF(E27=0,0,C27/E27) -> 0 | H27: =IF(D27+E27=0,0,(B27+C27)/(D27+E27)) -> 0 | K27: 0 | L27: =IF(I27=0,0,(B27-I27)/I27) -> 0 | M27: =IF(K27=0,0,(H27-K27)/K27) -> 0
A28: Bergen | F28: 0 | G28: =IF(E28=0,0,C28/E28) -> 0 | H28: =IF(D28+E28=0,0,(B28+C28)/(D28+E28)) -> 0 | K28: 0 | L28: =IF(I28=0,0,(B28-I28)/I28) -> 0 | M28: =IF(K28=0,0,(H28-K28)/K28) -> 0
A29: Glåmdal | F29: 0 | G29: 0 | H29: 0 | K29: 0 | L29: 0 | M29: 0
A30: Hamar og Omegn | F30: 0 | G30: 0 | H30: 0 | I30: 96909 | K30: 357.73 | L30: -1 | M30: -1
A31: Nordland | F31: 0 | G31: 0 | H31: 0 | K31: 0 | L31: 0 | M31: 0
A32: Stavanger | B32: 566693 | D32: 1718 | F32: 329.8562282 | G32: 0 | H32: 329.8562282 | I32: 961889 | K32: 319.14 | L32: -0.410854059 | M32: 0.03357845514
A33: Tromsø | F33: 0 | L33: 0 | M33: 0
A34: Telemark | F34: 0 | G34: 0 | H34: 0 | K34: 0 | L34: 0 | M34: 0
A35: Trondheim | B35: 6157046 | C35: 560080 | D35: 23189 | E35: 3282 | F35: 265.5158049 | G35: =IF(E35=0,0,C35/E35) -> 170.6520414 | H35: =IF(D35+E35=0,0,(B35+C35)/(D35+E35)) -> 253.754146 | I35: 1609931 | K35: 274.73 | L35: 2.824416077 | M35: -0.07635079516
A36: Vestfold | F36: 0 | G36: 0 | H36: 0 | K36: 0 | L36: 0 | M36: 0
A37: Oslo | B37: 11959469 | D37: 41401.5 | F37: 288.8655967 | G37: 0 | H37: 288.8655967 | I37: 10240692 | K37: 281.82 | L37: 0.1678379742 | M37: 0.02500034297
A38: Østfold | B38: 705727.5 | D38: 2157.5 | F38: =IF(D38=0,0,B38/D38) -> 327.1042874 | G38: 0 | H38: 327.1042874 | I38: 3266750 | K38: 303.23 | L38: -0.7839664804 | M38: 0.0787332631
A39: Landet i alt | F39: =IF(D39=0,0,B39/D39) -> 0 | G39: =IF(E39=0,0,C39/E39) -> 0 | H39: =IF(D39+E39=0,0,(B39+C39)/(D39+E39)) -> 0 | I39: =SUM(I27:I38) -> 16176171 | J39: 0 | K39: 287.55 | L39: -1 | M39: -1
A42: ="MÅLESTATISTIKK FOR MURERE - GJENNOMSNITT HELE ÅRET "&FORS!$A$14 -> MÅLESTATISTIKK FOR MURERE - GJENNOMSNITT HELE ÅRET 2016
B44: Målesum i kroner | D44: Timer | F44: ="Fortjeneste hele "&FORS!$A$14-0 -> Fortjeneste hele 2016 | I44: =" Hele året "&FORS!$A$14-1 -> Hele året 2015 | L44: Endringer i %
B45: Innmålt m/ | C45: Innmålt m/ | D45: Innmålt m/ | E45: Innmålt m/ | F45: Innmålt m/ | G45: Innmålt m/ | H45: Gjennom- | I45: Innmålt m/ | J45: Innmålt m/ | K45: Gjen.snitt | L45: Innmålt m/ | M45: Gjen.snitt
B46: overskudd | C46: underskudd | D46: overskudd | E46: underskudd | F46: overskudd | G46: underskudd | H46: snitt | I46: overskudd | J46: underskudd | K46: fortjeneste | L46: overskudd | M46: fortjeneste
A47: Agder | B47: =B7+B27 -> 0 | C47: =C7+C27 -> 0 | D47: 0 | E47: 0 | F47: =IF(D47=0,0,B47/D47) -> 0 | G47: =IF(E47=0,0,C47/E47) -> 0 | H47: =IF(D47+E47=0,0,(B47+C47)/(D47+E47)) -> 0 | I47: 0 | J47: 0 | K47: 0 | L47: =IF(I47=0,0,(B47-I47)/I47) -> 0 | M47: =IF(K47=0,0,(H47-K47)/K47) -> 0
A48: Bergen | B48: =B8+B28 -> 79198.12 | C48: 0 | D48: 335.35 | E48: 0 | F48: =IF(D48=0,0,B48/D48) -> 236.1655584 | G48: =IF(E48=0,0,C48/E48) -> 0 | H48: =IF(D48+E48=0,0,(B48+C48)/(D48+E48)) -> 236.1655584 | I48: 930717 | J48: 0 | K48: 260.03 | L48: =IF(I48=0,0,(B48-I48)/I48) -> -0.9149063357 | M48: =IF(K48=0,0,(H48-K48)/K48) -> -0.09177572445
A49: Glåmdal | B49: 0 | C49: 0 | D49: 0 | E49: 0 | F49: 0 | G49: 0 | H49: 0 | I49: 0 | J49: 0 | K49: 0 | L49: 0 | M49: 0
A50: Hamar og Omegn | B50: 96166.71 | C50: 0 | D50: 226.9 | E50: 0 | F50: 423.8286029 | G50: 0 | H50: 423.8286029 | I50: 204635 | J50: 0 | K50: 377.69 | L50: -0.5300573704 | M50: 0.1221599802
A51: Nordland | B51: 0 | C51: 0 | D51: 0 | E51: 0 | F51: 0 | G51: 0 | H51: 0 | I51: 0 | J51: 0 | K51: 0 | L51: 0 | M51: 0
A52: Stavanger | B52: 1029469 | C52: 0 | D52: 3210.5 | E52: 0 | F52: 320.656907 | G52: 0 | H52: 320.656907 | I52: 1547101 | J52: 0 | K52: 313.08 | L52: -0.3345819051 | M52: 0.02420118508
A53: Tromsø | B53: 0 | C53: 0 | D53: 0 | E53: 0 | F53: 0 | G53: 0 | H53: 0 | I53: 0 | J53: 0 | K53: 0 | L53: 0 | M53: 0
A54: Telemark | B54: 0 | C54: 0 | D54: 0 | E54: 0 | F54: 0 | G54: 0 | H54: 0 | I54: 0 | J54: 0 | K54: 0 | L54: 0 | M54: 0
A55: Trondheim | B55: 9078263 | C55: 1219674 | D55: 33402 | E55: 6199 | F55: 271.7880067 | G55: =IF(E55=0,0,C55/E55) -> 196.7533473 | H55: =IF(D55+E55=0,0,(B55+C55)/(D55+E55)) -> 260.0423474 | I55: 4146481 | J55: 222947 | K55: 261.24 | L55: 1.18938975 | M55: -0.004584491596
A56: Vestfold | B56: 0 | C56: 0 | D56: 0 | E56: 0 | F56: 0 | G56: 0 | H56: 0 | I56: 0 | J56: 0 | K56: 0 | L56: 0 | M56: 0
A57: Oslo | B57: 22911364 | C57: 2009263 | D57: 81639.5 | E57: 9929 | F57: 280.6406703 | G57: 202.3630779 | H57: 272.1528364 | I57: 17924687 | J57: 0 | K57: 282.22 | L57: 0.2782016222 | M57: -0.035671333
A58: Østfold | B58: =B18+B38 -> 3228980.2 | C58: 0 | D58: 9666 | E58: 0 | F58: 334.0554728 | G58: 0 | H58: 334.0554728 | I58: 5622722 | J58: 0 | K58: 290.6 | L58: -0.4257265076 | M58: 0.1495370709
A59: Landet i alt | B59: =SUM(B47:B58) -> 36423441.03 | C59: =SUM(C47:C58) -> 3228937 | D59: =SUM(D47:D58) -> 128480.25 | E59: =SUM(E47:E58) -> 16128 | F59: =IF(D59=0,0,B59/D59) -> 283.4944751 | G59: =IF(E59=0,0,C59/E59) -> 200.2069072 | H59: =IF(D59+E59=0,0,(B59+C59)/(D59+E59)) -> 274.2055037 | I59: =SUM(I48:I58) -> 30376343 | J59: =SUM(J47:J58) -> 222947 | K59: 281.63 | L59: 0.1990726148 | M59: -0.02636259029

Sheet BLIKK OG VENTILASJON
A2: ="MÅLESTATISTIKK FOR BLIKK- OG VENTILASJONSARBEID - 1. HALVÅR "&FORS!$A$14 -> MÅLESTATISTIKK FOR BLIKK- OG VENTILASJONSARBEID - 1. HALVÅR 2016
B4: Målesum i kroner | D4: Timer | F4: ="Fortjeneste 1. halvår "&FORS!$A$14-0 -> Fortjeneste 1. halvår 2016 | I4: =" 1. halvår "&FORS!$A$14-1 -> 1. halvår 2015 | L4: Endringer i %
B5: Innmålt m/ | C5: Innmålt m/ | D5: Innmålt m/ | E5: Innmålt m/ | F5: Innmålt m/ | G5: Innmålt m/ | H5: Gjennom- | I5: Innmålt m/ | J5: Innmålt m/ | K5: Gjen.snitt | L5: Innmålt m/ | M5: Gjen.snitt
B6: overskudd | C6: underskudd | D6: overskudd | E6: underskudd | F6: overskudd | G6: underskudd | H6: snitt | I6: overskudd | J6: underskudd | K6: fortjeneste | L6: overskudd | M6: fortjeneste
A7: Nordland | F7: =IF(D7=0,0,B7/D7) -> 0 | G7: 0 | H7: =IF(D7+E7=0,0,(B7+C7)/(D7+E7)) -> 0 | L7: =IF(I7=0,0,(B7-I7)/I7) -> 0 | M7: =IF(K7=0,0,(H7-K7)/K7) -> 0
A8: Stavanger | G8: 0 | H8: =IF(D8+E8=0,0,(B8+C8)/(D8+E8)) -> 0 | L8: =IF(I8=0,0,(B8-I8)/I8) -> 0 | M8: =IF(K8=0,0,(H8-K8)/K8) -> 0
A9: Oslo | G9: 0 | H9: =IF(D9+E9=0,0,(B9+C9)/(D9+E9)) -> 0 | L9: 0 | M9: 0
A10: Landet i alt | B10: =SUM(B7:B9) -> 0 | C10: =SUM(C7:C9) -> 0 | D10: =SUM(D7:D9) -> 0 | E10: =SUM(E7:E9) -> 0 | F10: 0 | G10: 0 | H10: =IF(D10+E10=0,0,(B10+C10)/(D10+E10)) -> 0 | L10: 0 | M10: 0
L11: 0 | M11: 0
L12: 0 | M12: 0
A13: ="MÅLESTATISTIKK FOR BLIKK- OG VENTILASJONSARBEID - 2. HALVÅR "&FORS!$A$14 -> MÅLESTATISTIKK FOR BLIKK- OG VENTILASJONSARBEID - 2. HALVÅR 2016 | L13: 0 | M13: 0
B15: Målesum i kroner | D15: Timer | F15: ="Fortjeneste 2. halvår "&FORS!$A$14-0 -> Fortjeneste 2. halvår 2016 | I15: =" 2. halvår "&FORS!$A$14-1 -> 2. halvår 2015 | L15: Endringer i %
B16: Innmålt m/ | C16: Innmålt m/ | D16: Innmålt m/ | E16: Innmålt m/ | F16: Innmålt m/ | G16: Innmålt m/ | H16: Gjennom- | I16: Innmålt m/ | J16: Innmålt m/ | K16: Gjen.snitt | L16: Innmålt m/ | M16: Gjen.snitt
B17: overskudd | C17: underskudd | D17: overskudd | E17: underskudd | F17: overskudd | G17: underskudd | H17: snitt | I17: overskudd | J17: underskudd | K17: fortjeneste | L17: overskudd | M17: fortjeneste
A18: Nordland | F18: =IF(D18=0,0,B18/D18) -> 0 | G18: 0 | H18: =IF(D18+E18=0,0,(B18+C18)/(D18+E18)) -> 0 | L18: =IF(I18=0,0,(B18-I18)/I18) -> 0 | M18: =IF(K18=0,0,(H18-K18)/K18) -> 0
A19: Stavanger | F19: 0 | G19: 0 | H19: =IF(D19+E19=0,0,(B19+C19)/(D19+E19)) -> 0 | L19: =IF(I19=0,0,(B19-I19)/I19) -> 0 | M19: =IF(K19=0,0,(H19-K19)/K19) -> 0
A20: Oslo | F20: 0 | G20: 0 | H20: =IF(D20+E20=0,0,(B20+C20)/(D20+E20)) -> 0 | L20: 0 | M20: 0
A21: Landet i alt | B21: =SUM(B18:B20) -> 0 | C21: =SUM(C18:C20) -> 0 | D21: =SUM(D18:D20) -> 0 | E21: =SUM(C18:C20) -> 0 | F21: 0 | G21: 0 | H21: =IF(D21+E21=0,0,(B21+C21)/(D21+E21)) -> 0 | L21: 0 | M21: 0
A24: ="MÅLESTATISTIKK FOR BLIKK- OG VENTILASJONSARBEID - GJENNOMSNITT HELE ÅRET "&FORS!$A$14 -> MÅLESTATISTIKK FOR BLIKK- OG VENTILASJONSARBEID - GJENNOMSNITT HELE ÅRET 2016
B26: Målesum i kroner | D26: Timer | F26: ="Fortjeneste hele "&FORS!$A$14-0 -> Fortjeneste hele 2016 | I26: =" Hele året "&FORS!$A$14-1 -> Hele året 2015 | L26: Endringer i %
B27: Innmålt m/ | C27: Innmålt m/ | D27: Innmålt m/ | E27: Innmålt m/ | F27: Innmålt m/ | G27: Innmålt m/ | H27: Gjennom- | I27: Innmålt m/ | J27: Innmålt m/ | K27: Gjen.snitt | L27: Innmålt m/ | M27: Gjen.snitt
B28: overskudd | C28: underskudd | D28: overskudd | E28: underskudd | F28: overskudd | G28: underskudd | H28: snitt | I28: overskudd | J28: underskudd | K28: fortjeneste | L28: overskudd | M28: fortjeneste
A29: Nordland | B29: =B7+B18 -> 0 | C29: 0 | D29: 0 | E29: 0 | F29: =IF(D29=0,0,B29/D29) -> 0 | G29: 0 | H29: =IF(D29+E29=0,0,(B29+C29)/(D29+E29)) -> 0 | L29: =IF(I29=0,0,(B29-I29)/I29) -> 0 | M29: =IF(K29=0,0,(H29-K29)/K29) -> 0
A30: Stavanger | B30: 0 | C30: 0 | D30: 0 | E30: 0 | F30: 0 | G30: 0 | H30: =IF(D30+E30=0,0,(B30+C30)/(D30+E30)) -> 0 | L30: =IF(I30=0,0,(B30-I30)/I30) -> 0 | M30: =IF(K30=0,0,(H30-K30)/K30) -> 0
A31: Oslo | B31: 0 | C31: 0 | D31: 0 | E31: 0 | F31: 0 | G31: 0 | H31: =IF(D31+E31=0,0,(B31+C31)/(D31+E31)) -> 0 | L31: 0 | M31: 0
A32: Landet i alt | B32: =SUM(B29:B31) -> 0 | C32: =SUM(C29:C31) -> 0 | D32: =SUM(D29:D31) -> 0 | E32: =SUM(E29:E31) -> 0 | F32: 0 | G32: 0 | H32: =IF(D32+E32=0,0,(B32+C32)/(D32+E32)) -> 0 | L32: 0 | M32: 0

Sheet ISOLATØR
A2: ="MÅLESTATISTIKK FOR ISOLATØRER - "&FORS!$A$14 -> MÅLESTATISTIKK FOR ISOLATØRER - 2016
B4: Målesum i kroner | D4: Timer | F4: ="Fortjeneste "&FORS!$A$14-0 -> Fortjeneste 2016 | I4: =FORS!$A$14-1 -> 2015 | L4: Endringer i %
B5: Innmålt m/ | C5: Innmålt m/ | D5: Innmålt m/ | E5: Innmålt m/ | F5: Innmålt m/ | G5: Innmålt m/ | H5: Gjennom- | I5: Innmålt m/ | J5: Innmålt m/ | K5: Gjen.snitt | L5: Innmålt m/ | M5: Gjen.snitt
B6: overskudd | C6: underskudd | D6: overskudd | E6: underskudd | F6: overskudd | G6: underskudd | H6: snitt | I6: overskudd | J6: underskudd | K6: fortjeneste | L6: overskudd | M6: fortjeneste
A7: Landet i alt 1. halvår | B7: 0 | F7: =IF(D7=0,0,B7/D7) -> 0 | G7: 0 | H7: =IF(D7+E7=0,0,(B7+C7)/(D7+E7)) -> 0 | I7: 0 | J7: 0 | K7: 0 | L7: =IF(I7=0,0,(B7-I7)/I7) -> 0 | M7: =IF(K7=0,0,(H7-K7)/K7) -> 0
A8: Landet i alt 2. halvår | F8: =IF(D8=0,0,B8/D8) -> 0 | G8: =IF(E8=0,0,C8/E8) -> 0 | H8: =IF(D8+E8=0,0,(B8+C8)/(D8+E8)) -> 0 | J8: 0 | L8: =IF(I8=0,0,(B8-I8)/I8) -> 0 | M8: =IF(K8=0,0,(H8-K8)/K8) -> 0
A9: ="Landet i alt "&FORS!A14 -> Landet i alt 2016 | B9: =SUM(B7:B8) -> 0 | C9: =SUM(C7:C8) -> 0 | D9: =SUM(D7:D8) -> 0 | E9: =SUM(E7:E8) -> 0 | F9: 0 | G9: 0 | H9: =IF(D9+E9=0,0,(B9+C9)/(D9+E9)) -> 0 | I9: =SUM(I7:I8) -> 0 | J9: =SUM(J7:J8) -> 0 | L9: 0 | M9: 0
